{"text_format":"1","workbook":"xlsx","n_sheets":7,"sheets":["申込入力者の方へ","入力例","入力シート","申込み","プログラム掲載","Windmill","リスト"],"not_rendered":{"charts":0,"images":0,"macros":1,"external_links":0,"defined_names":14,"comments":0,"pivot_tables":0},"unopened":[],"bounds":{"document_bytes":16777216,"sheet_cells":100000,"rows_first":2000,"rows_last":500,"rows_between":2000,"halvings":0,"cell_chars":16384,"cell_head_chars":4096},"cells_cut":0,"cells_raw":0,"read":"whole","date_system":"1900"}

{"sheet":"申込入力者の方へ","index":0,"n_rows":21,"n_cols":3,"rows_kept":21,"cut":false,"hidden":false,"merged":[]}
["※このエクセルファイルについて"]
[null,null,"マクロを組んでいます。"]
[null,null,"マクロを有効にして使用してください。"]
[]
["※各シートについて"]
[null,"・大会要項"]
[null,null,"大会要項をご確認の上、申込みをお願いします。"]
[]
[null,"・入力例、入力シート"]
[null,null,"入力例に倣って入力シートに必要事項を入力してください。"]
[]
[null,"・申し込み【編集不可】"]
[null,null,"「入力シート」から自動作成しています。"]
[null,null,"印刷をして、押印等行ってください。"]
[null,null,"※日付はＰＣ入力・印刷後記入のどちらでも可能です。"]
[null,null,"※記入漏れ等ないようご確認の上、郵送してください。"]
[]
[null,"・プログラム掲載【編集不可】"]
[null,null,"「入力シート」から自動作成しています。"]
[null,null,"チーム紹介コメントの改行を変えたいときは、"]
[null,null,"「入力シート」内で変更してください。（Alt＋Enter）"]

{"sheet":"入力例","index":1,"n_rows":73,"n_cols":33,"rows_kept":73,"cut":false,"hidden":false,"merged":[[1,0,1,3],[1,4,1,20],[2,0,2,3],[2,4,2,7],[3,0,3,3],[3,4,3,20],[4,0,4,3],[4,4,4,20],[5,0,8,1],[5,2,5,3],[5,4,5,8],[6,2,6,3],[6,4,6,20],[7,2,7,3],[7,4,7,8],[8,2,8,3],[8,4,8,8],[9,0,10,3],[9,4,9,6],[9,7,9,8],[9,9,9,11],[9,12,9,14],[10,4,10,6],[10,7,10,8],[10,9,10,11],[10,12,10,14],[11,0,12,3],[11,4,11,6],[11,7,11,8],[11,9,11,11],[11,12,11,14],[12,4,12,6],[12,7,12,8],[12,9,12,11],[12,12,12,14],[13,0,19,1],[13,2,13,3],[13,4,13,8],[14,2,14,3],[14,4,14,20],[15,2,15,3],[15,4,15,8],[16,2,16,3],[16,4,16,8],[17,2,17,3],[17,4,17,8],[18,2,18,3],[18,4,18,14],[19,2,19,3],[19,4,19,14],[21,4,21,6],[21,7,21,8],[21,9,21,11],[21,12,21,14],[22,0,22,3],[22,4,22,6],[22,7,22,8],[22,9,22,11],[22,12,22,14],[23,0,23,3],[23,4,23,6],[23,7,23,8],[23,9,23,11],[23,12,23,14],[24,0,24,3],[24,4,24,6],[24,7,24,8],[24,9,24,11],[24,12,24,14],[25,0,25,3],[25,4,25,6],[25,7,25,8],[25,9,25,11],[25,12,25,14],[26,0,26,3],[26,4,26,6],[26,7,26,8],[26,9,26,11],[26,12,26,14],[35,14,35,16],[35,17,35,19],[30,2,30,3],[30,4,30,9],[31,0,33,1],[31,2,31,3],[31,4,31,9],[32,2,32,3],[32,4,32,9],[33,2,33,3],[33,4,33,9],[28,0,30,1],[28,2,28,3],[28,4,28,9],[29,2,29,3],[29,4,29,9],[35,3,35,4],[35,7,35,8],[35,9,35,10],[35,11,35,13],[36,0,61,1],[36,3,36,4],[36,5,36,6],[36,7,36,8],[36,9,36,10],[36,11,36,13],[38,3,38,4],[38,5,38,6],[38,7,38,8],[38,9,38,10],[38,11,38,13],[36,14,36,16],[36,17,36,19],[37,3,37,4],[37,5,37,6],[37,7,37,8],[37,9,37,10],[37,11,37,13],[37,14,37,16],[37,17,37,19],[38,14,38,16],[38,17,38,19],[39,3,39,4],[39,5,39,6],[39,7,39,8],[39,9,39,10],[39,11,39,13],[39,14,39,16],[39,17,39,19],[40,17,40,19],[41,3,41,4],[41,5,41,6],[41,7,41,8],[41,9,41,10],[41,11,41,13],[41,14,41,16],[41,17,41,19],[40,3,40,4],[40,5,40,6],[40,7,40,8],[40,9,40,10],[40,11,40,13],[40,14,40,16],[42,17,42,19],[43,3,43,4],[43,5,43,6],[43,7,43,8],[43,9,43,10],[43,11,43,13],[43,14,43,16],[43,17,43,19],[42,3,42,4],[42,5,42,6],[42,7,42,8],[42,9,42,10],[42,11,42,13],[42,14,42,16],[44,17,44,19],[45,3,45,4],[45,5,45,6],[45,7,45,8],[45,9,45,10],[45,11,45,13],[45,14,45,16],[45,17,45,19],[44,3,44,4],[44,5,44,6],[44,7,44,8],[44,9,44,10],[44,11,44,13],[44,14,44,16],[46,17,46,19],[47,3,47,4],[47,5,47,6],[47,7,47,8],[47,9,47,10],[47,11,47,13],[47,14,47,16],[47,17,47,19],[46,3,46,4],[46,5,46,6],[46,7,46,8],[46,9,46,10],[46,11,46,13],[46,14,46,16],[48,17,48,19],[49,3,49,4],[49,5,49,6],[49,7,49,8],[49,9,49,10],[49,11,49,13],[49,14,49,16],[49,17,49,19],[48,3,48,4],[48,5,48,6],[48,7,48,8],[48,9,48,10],[48,11,48,13],[48,14,48,16],[50,17,50,19],[51,3,51,4],[51,5,51,6],[51,7,51,8],[51,9,51,10],[51,11,51,13],[51,14,51,16],[51,17,51,19],[50,3,50,4],[50,5,50,6],[50,7,50,8],[50,9,50,10],[50,11,50,13],[50,14,50,16],[52,17,52,19],[53,3,53,4],[53,5,53,6],[53,7,53,8],[53,9,53,10],[53,11,53,13],[53,14,53,16],[53,17,53,19],[52,3,52,4],[52,5,52,6],[52,7,52,8],[52,9,52,10],[52,11,52,13],[52,14,52,16],[54,17,54,19],[55,3,55,4],[55,5,55,6],[55,7,55,8],[55,9,55,10],[55,11,55,13],[55,14,55,16],[55,17,55,19],[54,3,54,4],[54,5,54,6],[54,7,54,8],[54,9,54,10],[54,11,54,13],[54,14,54,16],[56,17,56,19],[57,3,57,4],[57,5,57,6],[57,7,57,8],[57,9,57,10],[57,11,57,13],[57,14,57,16],[57,17,57,19],[56,3,56,4],[56,5,56,6],[56,7,56,8],[56,9,56,10],[56,11,56,13],[56,14,56,16],[58,17,58,19],[59,3,59,4],[59,5,59,6],[59,7,59,8],[59,9,59,10],[59,11,59,13],[59,14,59,16],[59,17,59,19],[58,3,58,4],[58,5,58,6],[58,7,58,8],[58,9,58,10],[58,11,58,13],[58,14,58,16],[60,17,60,19],[61,3,61,4],[61,5,61,6],[61,7,61,8],[61,9,61,10],[61,11,61,13],[61,14,61,16],[61,17,61,19],[60,3,60,4],[60,5,60,6],[60,7,60,8],[60,9,60,10],[60,11,60,13],[60,14,60,16],[67,0,71,3],[72,0,72,3],[72,4,72,8],[63,0,66,1],[63,2,63,3],[63,4,63,5],[64,2,64,3],[64,4,64,5],[65,2,65,3],[65,4,65,5],[66,2,66,3],[66,4,66,5],[67,4,71,15]]}
[]
["大会名",null,null,null,"第１８回　都道府県対抗全日本高校生男子ソフトボール大会",null,null,null,null,null,null,null,null,null,null,null,null,null,null,null,null,null,"氏名入力結果","かな入力結果",null,null,{"$f":"IF(E2=\"\",\"\",E2)","v":"第１８回　都道府県対抗全日本高校生男子ソフトボール大会"}]
["都道府県名",null,null,null,"宮崎県",null,null,null,"※選択してください",null,null,null,null,null,null,null,null,null,null,"※選択してください",null,null,null,null,null,null,{"$f":"IF(E3=\"\",\"\",E3)","v":"宮崎県"}]
["ふりがな",null,null,null,"さむらいじゃぱん2023",null,null,null,null,null,null,null,null,null,null,null,null,null,null,null,null,null,null,null,null,null,{"$f":"IF(E4=\"\",\"\",E4)","v":"さむらいじゃぱん2023"}]
["チーム名",null,null,null,"侍ジャパン2023",null,null,null,null,null,null,null,null,null,null,null,null,null,null,null,null,null,null,null,null,null,{"$f":"IF(E5=\"\",\"\",E5)","v":"侍ジャパン2023"}]
["チーム\n所在地",null,"〒　",null,"889-0000",null,null,null,null,"※半角入力",null,null,null,null,null,null,null,null,null,null,null,null,null,null,null,null,{"$f":"IF(E6=\"\",\"\",ASC(E6))","v":"889-0000"}]
[null,null,"住所",null,"宮崎県日南市白井1丁目2－3侍ジャパン事務所",null,null,null,null,null,null,null,null,null,null,null,null,null,null,null,null,null,null,null,null,null,{"$f":"IF(E7=\"\",\"\",E7)","v":"宮崎県日南市白井1丁目2－3侍ジャパン事務所"}]
[null,null,"TEL　",null,"0987-12-3456",null,null,null,null,"※半角入力",null,null,null,null,null,null,null,null,null,null,null,null,null,null,null,null,{"$f":"IF(E8=\"\",\"\",ASC(E8))","v":"0987-12-3456"}]
[null,null,"FAX　",null,"0987-12-7890",null,null,null,null,"※半角入力",null,null,null,null,null,null,null,null,null,null,null,null,null,null,null,null,{"$f":"IF(E9=\"\",\"\",ASC(E9))","v":"0987-12-7890"}]
["所属長\n（代表者）",null,null,null,"姓",null,null,"名",null,"姓（かな）",null,null,"名（かな）"]
[null,null,null,null,"白井",null,null,"一幸",null,"しらい",null,null,"かずゆき",null,null,null,null,null,null,null,null,null,{"$f":"IF(CONCATENATE(E11,\"　\",H11)=\"　\",\"\",CONCATENATE(E11,\"　\",H11))","v":"白井　一幸"},{"$f":"IF(CONCATENATE(J11,\"　\",M11)=\"　\",\"\",CONCATENATE(J11,\"　\",M11))","v":"しらい　かずゆき"},{"$f":"IF(CONCATENATE(J11,\"　\",M11)=\"　\",\"\",CONCATENATE(ASC(PHONETIC(J11)),\" \",ASC(PHONETIC(M11))))","v":"ｼﾗｲ ｶｽﾞﾕｷ"},null,{"$f":"IF(W11=\"\",\"\",W11)","v":"白井　一幸"},{"$f":"IF(X11=\"\",\"\",X11)","v":"しらい　かずゆき"}]
["連絡責任者",null,null,null,"姓",null,null,"名",null,"姓（かな）",null,null,"名（かな）"]
[null,null,null,null,"清水",null,null,"雅治",null,"しみず",null,null,"まさじ",null,null,null,null,null,null,null,null,null,{"$f":"IF(CONCATENATE(E13,\"　\",H13)=\"　\",\"\",CONCATENATE(E13,\"　\",H13))","v":"清水　雅治"},{"$f":"IF(CONCATENATE(J13,\"　\",M13)=\"　\",\"\",CONCATENATE(J13,\"　\",M13))","v":"しみず　まさじ"},{"$f":"IF(CONCATENATE(J13,\"　\",M13)=\"　\",\"\",CONCATENATE(ASC(PHONETIC(J13)),\" \",ASC(PHONETIC(M13))))","v":"ｼﾐｽﾞ ﾏｻｼﾞ"},null,{"$f":"IF(W13=\"\",\"\",W13)","v":"清水　雅治"},{"$f":"IF(X13=\"\",\"\",X13)","v":"しみず　まさじ"}]
["連絡先",null,"〒　",null,"880-0000",null,null,null,null,"※半角入力",null,null,null,null,null,null,null,null,null,null,null,null,null,null,null,null,{"$f":"IF(E14=\"\",\"\",ASC(E14))","v":"880-0000"}]
[null,null,"住所",null,"宮崎県宮崎市清水3丁目2－1",null,null,null,null,null,null,null,null,null,null,null,null,null,null,null,null,null,null,null,null,null,{"$f":"IF(E15=\"\",\"\",E15)","v":"宮崎県宮崎市清水3丁目2－1"}]
[null,null,"TEL　",null,"0985-11-1111",null,null,null,null,"※半角入力",null,null,null,null,null,null,null,null,null,null,null,null,null,null,null,null,{"$f":"IF(E16=\"\",\"\",ASC(E16))","v":"0985-11-1111"}]
[null,null,"FAX　",null,"0985-11-1111",null,null,null,null,"※半角入力",null,null,null,null,null,null,null,null,null,null,null,null,null,null,null,null,{"$f":"IF(E17=\"\",\"\",ASC(E17))","v":"0985-11-1111"}]
[null,null,"携帯　",null,"090-1111-1111",null,null,null,null,"※半角入力",null,null,null,null,null,null,null,null,null,null,null,null,null,null,null,null,{"$f":"IF(E18=\"\",\"\",ASC(E18))","v":"090-1111-1111"}]
[null,null,"Mail①",null,"abc123@def.jp",null,null,null,null,null,null,null,null,null,null,"※半角入力（大会前後の諸連絡用）",null,null,null,null,null,null,null,null,null,null,{"$f":"IF(E19=\"\",\"\",ASC(E19))","v":"abc123@def.jp"}]
[null,null,"Mail②",null,"abc123@def.jp",null,null,null,null,null,null,null,null,null,null,"※半角入力（大会中の諸連絡用）",null,null,null,null,null,null,null,null,null,null,{"$f":"IF(E20=\"\",\"\",ASC(E20))","v":"abc123@def.jp"}]
[]
[null,null,null,null,"姓",null,null,"名",null,"姓（かな）",null,null,"名（かな）"]
["監　督（30）",null,null,null,"栗山",null,null,"英樹",null,"くりやま",null,null,"ひでき",null,null,null,null,null,null,null,null,null,{"$f":"IF(CONCATENATE(E23,\"　\",H23)=\"　\",\"\",CONCATENATE(E23,\"　\",H23))","v":"栗山　英樹"},{"$f":"IF(CONCATENATE(J23,\"　\",M23)=\"　\",\"\",CONCATENATE(J23,\"　\",M23))","v":"くりやま　ひでき"},{"$f":"IF(CONCATENATE(J23,\"　\",M23)=\"　\",\"\",CONCATENATE(ASC(PHONETIC(J23)),\" \",ASC(PHONETIC(M23))))","v":"ｸﾘﾔﾏ ﾋﾃﾞｷ"},null,{"$f":"IF(W23=\"\",\"\",W23)","v":"栗山　英樹"},{"$f":"IF(X23=\"\",\"\",X23)","v":"くりやま　ひでき"}]
["コーチ（31）","UN31",null,null,"吉村",null,null,"禎章",null,"よしむら",null,null,"さだあき",null,null,null,null,null,null,null,null,null,{"$f":"IF(CONCATENATE(E24,\"　\",H24)=\"　\",\"\",CONCATENATE(E24,\"　\",H24))","v":"吉村　禎章"},{"$f":"IF(CONCATENATE(J24,\"　\",M24)=\"　\",\"\",CONCATENATE(J24,\"　\",M24))","v":"よしむら　さだあき"},{"$f":"IF(CONCATENATE(J24,\"　\",M24)=\"　\",\"\",CONCATENATE(ASC(PHONETIC(J24)),\" \",ASC(PHONETIC(M24))))","v":"ﾖｼﾑﾗ ｻﾀﾞｱｷ"},null,{"$f":"IF(W24=\"\",\"\",W24)","v":"吉村　禎章"},"よしむら　さだあき"]
["コーチ（32）","UN32",null,null,"吉井",null,null,"理人",null,"よしい",null,null,"まさと",null,null,null,null,null,null,null,null,null,{"$f":"IF(CONCATENATE(E25,\"　\",H25)=\"　\",\"\",CONCATENATE(E25,\"　\",H25))","v":"吉井　理人"},{"$f":"IF(CONCATENATE(J25,\"　\",M25)=\"　\",\"\",CONCATENATE(J25,\"　\",M25))","v":"よしい　まさと"},{"$f":"IF(CONCATENATE(J25,\"　\",M25)=\"　\",\"\",CONCATENATE(ASC(PHONETIC(J25)),\" \",ASC(PHONETIC(M25))))","v":"ﾖｼｲ ﾏｻﾄ"},null,"吉井　理人","よしい　まさと"]
["スコアラー",null,null,null,"城石",null,null,"憲之",null,"しろいし",null,null,"のりゆき",null,null,"※当該年度有資格者に限る",null,null,null,null,null,null,{"$f":"IF(CONCATENATE(E26,\"　\",H26)=\"　\",\"\",CONCATENATE(E26,\"　\",H26))","v":"城石　憲之"},{"$f":"IF(CONCATENATE(J26,\"　\",M26)=\"　\",\"\",CONCATENATE(J26,\"　\",M26))","v":"しろいし　のりゆき"},{"$f":"IF(CONCATENATE(J26,\"　\",M26)=\"　\",\"\",CONCATENATE(ASC(PHONETIC(J26)),\" \",ASC(PHONETIC(M26))))","v":"ｼﾛｲｼ ﾉﾘﾕｷ"},null,{"$f":"IF(W26=\"\",\"\",W26)","v":"城石　憲之"},"しろいし　のりゆき"]
["トレーナー",null,null,null,"村田",null,null,"善則",null,"むらた",null,null,"よしのり",null,null,null,null,null,null,null,null,null,{"$f":"IF(CONCATENATE(E27,\"　\",H27)=\"　\",\"\",CONCATENATE(E27,\"　\",H27))","v":"村田　善則"},{"$f":"IF(CONCATENATE(J27,\"　\",M27)=\"　\",\"\",CONCATENATE(J27,\"　\",M27))","v":"むらた　よしのり"},{"$f":"IF(CONCATENATE(J27,\"　\",M27)=\"　\",\"\",CONCATENATE(ASC(PHONETIC(J27)),\" \",ASC(PHONETIC(M27))))","v":"ﾑﾗﾀ ﾖｼﾉﾘ"},null,"村田　善則","むらた　よしのり"]
[null,null,null,null,null,null,null,null,null,null,null,null,null,null,null,null,null,null,null,null,null,null,null,null,null,null,{"$f":"IF(E28=\"\",\"\",E28)","v":""}]
["指導者\n資格１",null,"氏　名",null,"栗山　英樹",null,null,null,null,null,"※選択または入力してください",null,null,null,null,null,null,null,null,null,null,null,null,null,null,null,{"$f":"IF(E29=\"\",\"\",E29)","v":"栗山　英樹"}]
[null,null,"資格名",null,"公認ソフトボールコーチ４",null,null,null,null,null,"※選択してください",null,null,null,null,null,null,null,null,null,null,null,null,null,null,null,{"$f":"IF(E30=\"\",\"\",E30)","v":"公認ソフトボールコーチ４"}]
[null,null,"登録番号",null,"0123456",null,null,null,null,null,"※半角入力",null,null,null,null,null,null,null,null,null,null,null,null,null,null,null,{"$f":"IF(E31=\"\",\"\",ASC(E31))","v":"0123456"}]
["指導者\n資格２",null,"氏　名",null,"吉村　禎章",null,null,null,null,null,"※選択または入力してください",null,null,null,null,null,null,null,null,null,null,null,null,null,null,null,{"$f":"IF(E32=\"\",\"\",E32)","v":"吉村　禎章"}]
[null,null,"資格名",null,"公認ソフトボールコーチ２",null,null,null,null,null,"※選択してください",null,null,null,null,null,null,null,null,null,null,null,null,null,null,null,{"$f":"IF(E33=\"\",\"\",E33)","v":"公認ソフトボールコーチ２"}]
[null,null,"登録番号",null,7890123,null,null,null,null,null,"※半角入力",null,null,null,null,null,null,null,null,null,null,null,null,null,null,null,{"$f":"IF(E34=\"\",\"\",ASC(E34))","v":"7890123"}]
[null,null,null,null,null,null,null,null,null,null,null,null,null,null,null,null,null,null,null,null,null,null,null,null,null,null,{"$f":"IF(E35=\"\",\"\",E35)","v":""}]
[null,null,null,"※半角",null,"※選択",null,"例：戸郷",null,"例：翔征",null,"例：とごう",null,null,"例：しょうせい",null,null,"例：2000/04/04",null,null,{"$f":"IF(U37=\"学年\",\"※入力\",\"\")","v":"※入力"},null,null,null,null,null,{"$f":"IF(E36=\"\",\"\",E36)","v":""}]
["選手",null,"No.","UN",null,"位置",null,"姓",null,"名",null,"姓（かな）",null,null,"名（かな）",null,null,"生年月日",null,null,"学年",null,null,null,null,null,{"$f":"IF(E37=\"\",\"\",E37)","v":""},null,null,null,null,null,{"$f":"IF(U37=\"\",\"\",U37)","v":"学年"}]
[null,null,1,10,null,"捕  手",null,"甲斐",null,"拓也",null,"かい",null,null,"たくや",null,null,"1992-11-05",null,null,3,null,{"$f":"IF(CONCATENATE(H38,\"　\",J38)=\"　\",\"\",CONCATENATE(H38,\"　\",J38))","v":"甲斐　拓也"},{"$f":"IF(CONCATENATE(L38,\"　\",O38)=\"　\",\"\",CONCATENATE(L38,\"　\",O38))","v":"かい　たくや"},{"$f":"IF(CONCATENATE(L38,\"　\",O38)=\"　\",\"\",CONCATENATE(ASC(PHONETIC(L38)),\" \",ASC(PHONETIC(O38))))","v":"ｶｲ ﾀｸﾔ"},null,{"$f":"IF(C38=\"\",\"\",C38)","v":1},{"$f":"IF(D38=\"\",\"\",VALUE(D38))","v":10},{"$f":"IF(F38=\"\",\"\",F38)","v":"捕  手"},{"$f":"IF(W38=\"\",\"\",W38)","v":"甲斐　拓也"},{"$f":"IF(X38=\"\",\"\",X38)","v":"かい　たくや"},{"$f":"IF(Y38=\"\",\"\",Y38)","v":"ｶｲ ﾀｸﾔ"},{"$f":"IF(U38=\"\",\"\",U38)","v":3}]
[null,null,2,11,null,"投  手",null,"ダルビッシュ",null,"有",null,"だるびっしゅ",null,null,"ゆう",null,null,"1986-08-16",null,null,3,null,"ダルビッシュ　有","だるびっしゅ　ゆう","ﾀﾞﾙﾋﾞｯｼｭ ﾕｳ",null,2,11,"投  手",{"$f":"IF(W39=\"\",\"\",W39)","v":"ダルビッシュ　有"},"だるびっしゅ　ゆう","ﾀﾞﾙﾋﾞｯｼｭ ﾕｳ",3]
[null,null,3,25,null,"一塁手",null,"岡本",null,"和真",null,"おかもと",null,null,"かずま",null,null,"1996-06-30",null,null,2,null,"岡本　和真","おかもと　かずま","ｵｶﾓﾄ ｶｽﾞﾏ",null,3,25,"一塁手","岡本　和真","おかもと　かずま","ｵｶﾓﾄ ｶｽﾞﾏ",2]
[null,null,4,1,null,"二塁手",null,"山田",null,"哲人",null,"やまだ",null,null,"てつと",null,null,"1992-07-16",null,null,3,null,"山田　哲人","やまだ　てつと","ﾔﾏﾀﾞ ﾃﾂﾄ",null,4,1,"二塁手","山田　哲人","やまだ　てつと","ﾔﾏﾀﾞ ﾃﾂﾄ",3]
[null,null,5,55,null,"三塁手",null,"村上",null,"宗隆",null,"むらかみ",null,null,"むねたか",null,null,"2000-02-02",null,null,1,null,"村上　宗隆","むらかみ　むねたか","ﾑﾗｶﾐ ﾑﾈﾀｶ",null,5,55,"三塁手","村上　宗隆","むらかみ　むねたか","ﾑﾗｶﾐ ﾑﾈﾀｶ",1]
[null,null,6,2,null,"遊撃手",null,"源田",null,"壮亮",null,"げんだ",null,null,"そうすけ",null,null,"1993-02-16",null,null,3,null,"源田　壮亮","げんだ　そうすけ","ｹﾞﾝﾀﾞ ｿｳｽｹ",null,6,2,"遊撃手","源田　壮亮","げんだ　そうすけ","ｹﾞﾝﾀﾞ ｿｳｽｹ",3]
[null,null,7,23,null,"左翼手",null,"ラーズ",null,"ヌートバー",null,"らーず",null,null,"ぬーとばー",null,null,"1997-09-08",null,null,2,null,"ラーズ　ヌートバー","らーず　ぬーとばー","ﾗｰｽﾞ ﾇｰﾄﾊﾞｰ",null,7,23,"左翼手","ラーズ　ヌートバー","らーず　ぬーとばー","ﾗｰｽﾞ ﾇｰﾄﾊﾞｰ",2]
[null,null,8,5,null,"中堅手",null,"牧原",null,"大成",null,"まきはら",null,null,"たいせい",null,null,"1992-10-15",null,null,3,null,"牧原　大成","まきはら　たいせい","ﾏｷﾊﾗ ﾀｲｾｲ",null,8,5,"中堅手","牧原　大成","まきはら　たいせい","ﾏｷﾊﾗ ﾀｲｾｲ",3]
[null,null,9,8,null,"右翼手",null,"近藤",null,"健介",null,"こんどう",null,null,"けんすけ",null,null,"1993-08-09",null,null,2,null,"近藤　健介","こんどう　けんすけ","ｺﾝﾄﾞｳ ｹﾝｽｹ",null,9,8,"右翼手","近藤　健介","こんどう　けんすけ","ｺﾝﾄﾞｳ ｹﾝｽｹ",2]
[null,null,10,12,null,"投  手",null,"戸郷",null,"翔征",null,"とごう",null,null,"しょうせい",null,null,"2000-04-04",null,null,1,null,"戸郷　翔征","とごう　しょうせい","ﾄｺﾞｳ ｼｮｳｾｲ",null,10,12,"投  手","戸郷　翔征","とごう　しょうせい","ﾄｺﾞｳ ｼｮｳｾｲ",1]
[null,null,11,16,null,"投  手",null,"大谷",null,"翔平",null,"おおたに",null,null,"しょうへい",null,null,"1994-07-05",null,null,2,null,"大谷　翔平","おおたに　しょうへい","ｵｵﾀﾆ ｼｮｳﾍｲ",null,11,16,"投  手","大谷　翔平","おおたに　しょうへい","ｵｵﾀﾆ ｼｮｳﾍｲ",2]
[null,null,12,18,null,"投  手",null,"山本",null,"由伸",null,"やまもと",null,null,"よしのぶ",null,null,"1998-08-17",null,null,2,null,"山本　由伸","やまもと　よしのぶ","ﾔﾏﾓﾄ ﾖｼﾉﾌﾞ",null,12,18,"投  手","山本　由伸","やまもと　よしのぶ","ﾔﾏﾓﾄ ﾖｼﾉﾌﾞ",2]
[null,null,13,28,null,"投  手",null,"髙橋",null,"宏斗",null,"たかはし",null,null,"ひろと",null,null,"2002-08-09",null,null,1,null,"髙橋　宏斗","たかはし　ひろと","ﾀｶﾊｼ ﾋﾛﾄ",null,13,28,"投  手","髙橋　宏斗","たかはし　ひろと","ﾀｶﾊｼ ﾋﾛﾄ",1]
[null,null,14,47,null,"投  手",null,"高橋",null,"奎二",null,"たかはし",null,null,"けいじ",null,null,"1997-05-14",null,null,2,null,"高橋　奎二","たかはし　けいじ","ﾀｶﾊｼ ｹｲｼﾞ",null,14,47,"投  手","高橋　奎二","たかはし　けいじ","ﾀｶﾊｼ ｹｲｼﾞ",2]
[null,null,15,24,null,"捕  手",null,"大城",null,"卓三",null,"おおしろ",null,null,"たくみ",null,null,"1993-02-11",null,null,3,null,"大城　卓三","おおしろ　たくみ","ｵｵｼﾛ ﾀｸﾐ",null,15,24,"捕  手","大城　卓三","おおしろ　たくみ","ｵｵｼﾛ ﾀｸﾐ",3]
[null,null,16,27,null,"捕  手",null,"中村",null,"悠平",null,"なかむら",null,null,"ゆうへい",null,null,"1990-06-17",null,null,3,null,"中村　悠平","なかむら　ゆうへい","ﾅｶﾑﾗ ﾕｳﾍｲ",null,16,27,"捕  手","中村　悠平","なかむら　ゆうへい","ﾅｶﾑﾗ ﾕｳﾍｲ",3]
[null,null,17,3,null,"内野手",null,"牧",null,"秀悟",null,"まき",null,null,"しゅうご",null,null,"1998-04-21",null,null,2,null,"牧　秀悟","まき　しゅうご","ﾏｷ ｼｭｳｺﾞ",null,17,3,"内野手","牧　秀悟","まき　しゅうご","ﾏｷ ｼｭｳｺﾞ",2]
[null,null,18,7,null,"内野手",null,"中野",null,"拓夢",null,"なかの",null,null,"たくむ",null,null,"1996-06-28",null,null,2,null,"中野　拓夢","なかの　たくむ","ﾅｶﾉ ﾀｸﾑ",null,18,7,"内野手","中野　拓夢","なかの　たくむ","ﾅｶﾉ ﾀｸﾑ",2]
[null,null,19,33,null,"内野手",null,"山川",null,"穂高",null,"やまかわ",null,null,"ほたか",null,null,"1991-11-23",null,null,3,null,"山川　穂高","やまかわ　ほたか","ﾔﾏｶﾜ ﾎﾀｶ",null,19,33,"内野手","山川　穂高","やまかわ　ほたか","ﾔﾏｶﾜ ﾎﾀｶ",3]
[null,null,20,9,null,"外野手",null,"周東",null,"佑京",null,"しゅうとう",null,null,"うきょう",null,null,"1996-02-10",null,null,2,null,"周東　佑京","しゅうとう　うきょう","ｼｭｳﾄｳ ｳｷｮｳ",null,20,9,"外野手","周東　佑京","しゅうとう　うきょう","ｼｭｳﾄｳ ｳｷｮｳ",2]
[null,null,21,34,null,"外野手",null,"吉田",null,"正尚",null,"よしだ",null,null,"まさたか",null,null,"1993-07-15",null,null,2,null,"吉田　正尚","よしだ　まさたか","ﾖｼﾀﾞ ﾏｻﾀｶ",null,21,34,"外野手","吉田　正尚","よしだ　まさたか","ﾖｼﾀﾞ ﾏｻﾀｶ",2]
[null,null,22,null,null,null,null,null,null,null,null,null,null,null,null,null,null,null,null,null,null,null,"","","",null,22,"","","","","",""]
[null,null,23,null,null,null,null,null,null,null,null,null,null,null,null,null,null,null,null,null,null,null,"","","",null,23,"","","","","",""]
[null,null,24,null,null,null,null,null,null,null,null,null,null,null,null,null,null,null,null,null,null,null,"","","",null,24,"","","","","",""]
[null,null,25,null,null,null,null,null,null,null,null,null,null,null,null,null,null,null,null,null,null,null,"","","",null,25,"","","","","",""]
[]
["当大会の\n過去の成績",null,"出場",null,10,null,"回目","※半角入力（今大会を含む）",null,null,null,null,null,null,null,null,null,null,null,null,null,null,null,null,null,null,{"$f":"IF(E64=\"\",\"\",VALUE(E64))","v":10}]
[null,null,"優勝",null,0,null,"回","※半角入力",null,null,null,null,null,null,null,null,null,null,null,null,null,null,null,null,null,null,{"$f":"IF(E65=\"\",\"\",VALUE(E65))","v":0}]
[null,null,"準優勝",null,2,null,"回","※半角入力",null,null,null,null,null,null,null,null,null,null,null,null,null,null,null,null,null,null,{"$f":"IF(E66=\"\",\"\",VALUE(E66))","v":2}]
[null,null,"３位",null,3,null,"回","※半角入力",null,null,null,null,null,null,null,null,null,null,null,null,null,null,null,null,null,null,{"$f":"IF(E67=\"\",\"\",VALUE(E67))","v":3}]
["チーム紹介",null,null,null,"今回で10回目の出場となります。\nキャプテンを中心にチーム一丸となり念願の初優勝を目指して頑張ってきました。ソフトボールが出来る環境と、日頃から支えてくださるすべての方への感謝を大切にし、一戦一戦全力を出し切り、ソフトボールを通して最高の思い出を作ります。",null,null,null,null,null,null,null,null,null,null,null,"※Alt＋Enterで改行できます",null,null,null,null,null,null,null,null,null,{"$f":"IF(E68=\"\",\"\",E68)","v":"今回で10回目の出場となります。\nキャプテンを中心にチーム一丸となり念願の初優勝を目指して頑張ってきました。ソフトボールが出来る環境と、日頃から支えてくださるすべての方への感謝を大切にし、一戦一戦全力を出し切り、ソフトボールを通して最高の思い出を作ります。"}]
[]
[]
[]
[]
["協会会長氏名",null,null,null,"厚澤　和幸",null,null,null,null,"※都道府県協会　会長です",null,null,null,null,null,null,null,null,null,null,null,null,null,null,null,null,{"$f":"IF(E73=\"\",\"\",E73)","v":"厚澤　和幸"}]

{"sheet":"入力シート","index":2,"n_rows":72,"n_cols":33,"rows_kept":72,"cut":false,"hidden":false,"merged":[[67,4,70,15],[6,4,6,20],[4,4,4,20],[3,4,3,20],[5,4,5,8],[29,4,29,9],[33,4,33,9],[32,4,32,9],[31,4,31,9],[30,4,30,9],[28,4,28,9],[10,12,10,14],[12,12,12,14],[25,12,25,14],[26,4,26,6],[26,7,26,8],[26,9,26,11],[26,12,26,14],[23,4,23,6],[22,4,22,6],[25,4,25,6],[25,7,25,8],[25,9,25,11],[24,4,24,6],[45,3,45,4],[45,5,45,6],[41,3,41,4],[41,5,41,6],[42,3,42,4],[42,5,42,6],[43,3,43,4],[43,5,43,6],[37,3,37,4],[37,5,37,6],[38,3,38,4],[38,5,38,6],[39,3,39,4],[39,5,39,6],[40,3,40,4],[40,5,40,6],[44,3,44,4],[44,5,44,6],[60,3,60,4],[60,5,60,6],[55,3,55,4],[55,5,55,6],[56,3,56,4],[56,5,56,6],[57,3,57,4],[57,5,57,6],[58,3,58,4],[58,5,58,6],[59,3,59,4],[59,5,59,6],[61,3,61,4],[61,5,61,6],[36,0,61,1],[36,3,36,4],[2,4,2,7],[8,4,8,8],[7,4,7,8],[10,7,10,8],[10,9,10,11],[12,7,12,8],[12,9,12,11],[33,2,33,3],[32,2,32,3],[51,3,51,4],[51,5,51,6],[52,3,52,4],[52,5,52,6],[46,3,46,4],[46,5,46,6],[31,2,31,3],[30,2,30,3],[29,2,29,3],[28,2,28,3],[31,0,33,1],[58,14,58,16],[28,0,30,1],[35,7,35,8],[35,9,35,10],[35,11,35,13],[35,3,35,4],[35,14,35,16],[36,7,36,8],[36,9,36,10],[36,11,36,13],[36,14,36,16],[54,3,54,4],[54,5,54,6],[47,3,47,4],[47,5,47,6],[48,3,48,4],[48,5,48,6],[49,3,49,4],[49,5,49,6],[53,3,53,4],[53,5,53,6],[50,3,50,4],[50,5,50,6],[36,5,36,6],[55,7,55,8],[55,9,55,10],[55,11,55,13],[55,14,55,16],[56,7,56,8],[56,9,56,10],[56,11,56,13],[61,17,61,19],[52,17,52,19],[53,17,53,19],[54,17,54,19],[55,17,55,19],[56,17,56,19],[57,17,57,19],[58,17,58,19],[59,17,59,19],[60,17,60,19],[57,7,57,8],[57,9,57,10],[57,11,57,13],[57,14,57,16],[58,7,58,8],[58,9,58,10],[58,11,58,13],[47,17,47,19],[48,17,48,19],[49,17,49,19],[50,17,50,19],[51,17,51,19],[61,7,61,8],[61,9,61,10],[61,11,61,13],[61,14,61,16],[52,7,52,8],[52,9,52,10],[52,11,52,13],[52,14,52,16],[49,7,49,8],[49,9,49,10],[49,11,49,13],[49,14,49,16],[50,7,50,8],[50,9,50,10],[50,11,50,13],[50,14,50,16],[47,7,47,8],[47,9,47,10],[47,11,47,13],[35,17,35,19],[36,17,36,19],[37,17,37,19],[38,17,38,19],[39,17,39,19],[40,17,40,19],[41,17,41,19],[42,17,42,19],[43,17,43,19],[44,17,44,19],[45,17,45,19],[46,17,46,19],[59,7,59,8],[59,9,59,10],[59,11,59,13],[59,14,59,16],[60,7,60,8],[60,9,60,10],[60,11,60,13],[60,14,60,16],[56,14,56,16],[53,7,53,8],[53,9,53,10],[53,11,53,13],[53,14,53,16],[54,7,54,8],[54,9,54,10],[54,11,54,13],[54,14,54,16],[51,7,51,8],[51,9,51,10],[51,11,51,13],[51,14,51,16],[47,14,47,16],[48,7,48,8],[48,9,48,10],[48,11,48,13],[48,14,48,16],[45,7,45,8],[45,9,45,10],[45,11,45,13],[45,14,45,16],[46,7,46,8],[46,9,46,10],[46,11,46,13],[46,14,46,16],[44,9,44,10],[44,11,44,13],[44,14,44,16],[41,7,41,8],[41,9,41,10],[41,11,41,13],[41,14,41,16],[42,7,42,8],[42,9,42,10],[42,11,42,13],[42,14,42,16],[43,7,43,8],[43,9,43,10],[43,11,43,13],[43,14,43,16],[44,7,44,8],[39,7,39,8],[39,9,39,10],[39,11,39,13],[39,14,39,16],[40,7,40,8],[40,9,40,10],[40,11,40,13],[40,14,40,16],[37,7,37,8],[37,9,37,10],[37,11,37,13],[37,14,37,16],[38,7,38,8],[38,9,38,10],[38,11,38,13],[38,14,38,16],[23,12,23,14],[22,12,22,14],[24,9,24,11],[23,9,23,11],[22,9,22,11],[24,7,24,8],[23,7,23,8],[22,7,22,8],[11,4,11,6],[24,12,24,14],[10,4,10,6],[9,4,9,6],[21,4,21,6],[11,7,11,8],[9,7,9,8],[11,12,11,14],[9,12,9,14],[11,9,11,11],[9,9,9,11],[13,4,13,8],[17,4,17,8],[16,4,16,8],[12,4,12,6],[21,12,21,14],[21,9,21,11],[21,7,21,8],[15,4,15,8],[19,4,19,14],[18,4,18,14],[8,2,8,3],[5,0,8,1],[22,0,22,3],[23,0,23,3],[24,0,24,3],[13,0,19,1],[19,2,19,3],[18,2,18,3],[17,2,17,3],[16,2,16,3],[15,2,15,3],[14,2,14,3],[13,2,13,3],[11,0,12,3],[1,4,1,20],[14,4,14,20],[67,0,70,3],[71,0,71,3],[71,4,71,8],[65,2,65,3],[63,2,63,3],[63,0,66,1],[66,2,66,3],[66,4,66,5],[65,4,65,5],[63,4,63,5],[64,4,64,5],[64,2,64,3],[2,0,2,3],[1,0,1,3],[26,0,26,3],[25,0,25,3],[9,0,10,3],[4,0,4,3],[3,0,3,3],[5,2,5,3],[6,2,6,3],[7,2,7,3]]}
[]
["大会名",null,null,null,null,null,null,null,null,null,null,null,null,null,null,null,null,null,null,null,null,null,"氏名入力結果","かな入力結果",null,null,{"$f":"IF(E2=\"\",\"\",E2)","v":""}]
["都道府県名",null,null,null,null,null,null,null,"※選択してください",null,null,null,null,null,null,null,null,null,null,"※選択してください",null,null,null,null,null,null,{"$f":"IF(E3=\"\",\"\",E3)","v":""}]
["ふりがな",null,null,null,null,null,null,null,null,null,null,null,null,null,null,null,null,null,null,null,null,null,null,null,null,null,{"$f":"IF(E4=\"\",\"\",E4)","v":""}]
["チーム名",null,null,null,null,null,null,null,null,null,null,null,null,null,null,null,null,null,null,null,null,null,null,null,null,null,{"$f":"IF(E5=\"\",\"\",E5)","v":""}]
["チーム\n所在地",null,"〒　",null,null,null,null,null,null,"※半角入力",null,null,null,null,null,null,null,null,null,null,null,null,null,null,null,null,{"$f":"IF(E6=\"\",\"\",ASC(E6))","v":""}]
[null,null,"住所",null,null,null,null,null,null,null,null,null,null,null,null,null,null,null,null,null,null,null,null,null,null,null,{"$f":"IF(E7=\"\",\"\",E7)","v":""}]
[null,null,"TEL　",null,null,null,null,null,null,"※半角入力",null,null,null,null,null,null,null,null,null,null,null,null,null,null,null,null,{"$f":"IF(E8=\"\",\"\",ASC(E8))","v":""}]
[null,null,"FAX　",null,null,null,null,null,null,"※半角入力",null,null,null,null,null,null,null,null,null,null,null,null,null,null,null,null,{"$f":"IF(E9=\"\",\"\",ASC(E9))","v":""}]
["所属長\n（代表者）",null,null,null,"姓",null,null,"名",null,"姓（かな）",null,null,"名（かな）"]
[null,null,null,null,null,null,null,null,null,null,null,null,null,null,null,null,null,null,null,null,null,null,{"$f":"IF(CONCATENATE(E11,\"　\",H11)=\"　\",\"\",CONCATENATE(E11,\"　\",H11))","v":""},{"$f":"IF(CONCATENATE(J11,\"　\",M11)=\"　\",\"\",CONCATENATE(J11,\"　\",M11))","v":""},{"$f":"IF(CONCATENATE(J11,\"　\",M11)=\"　\",\"\",CONCATENATE(ASC(PHONETIC(J11)),\" \",ASC(PHONETIC(M11))))","v":""},null,{"$f":"IF(W11=\"\",\"\",W11)","v":""},{"$f":"IF(X11=\"\",\"\",X11)","v":""}]
["連絡責任者",null,null,null,"姓",null,null,"名",null,"姓（かな）",null,null,"名（かな）"]
[null,null,null,null,null,null,null,null,null,null,null,null,null,null,null,null,null,null,null,null,null,null,{"$f":"IF(CONCATENATE(E13,\"　\",H13)=\"　\",\"\",CONCATENATE(E13,\"　\",H13))","v":""},{"$f":"IF(CONCATENATE(J13,\"　\",M13)=\"　\",\"\",CONCATENATE(J13,\"　\",M13))","v":""},{"$f":"IF(CONCATENATE(J13,\"　\",M13)=\"　\",\"\",CONCATENATE(ASC(PHONETIC(J13)),\" \",ASC(PHONETIC(M13))))","v":""},null,{"$f":"IF(W13=\"\",\"\",W13)","v":""},{"$f":"IF(X13=\"\",\"\",X13)","v":""}]
["連絡先",null,"〒　",null,null,null,null,null,null,"※半角入力",null,null,null,null,null,null,null,null,null,null,null,null,null,null,null,null,{"$f":"IF(E14=\"\",\"\",ASC(E14))","v":""}]
[null,null,"住所",null,null,null,null,null,null,null,null,null,null,null,null,null,null,null,null,null,null,null,null,null,null,null,{"$f":"IF(E15=\"\",\"\",E15)","v":""}]
[null,null,"TEL　",null,null,null,null,null,null,"※半角入力",null,null,null,null,null,null,null,null,null,null,null,null,null,null,null,null,{"$f":"IF(E16=\"\",\"\",ASC(E16))","v":""}]
[null,null,"FAX　",null,null,null,null,null,null,"※半角入力",null,null,null,null,null,null,null,null,null,null,null,null,null,null,null,null,{"$f":"IF(E17=\"\",\"\",ASC(E17))","v":""}]
[null,null,"携帯　",null,null,null,null,null,null,"※半角入力",null,null,null,null,null,null,null,null,null,null,null,null,null,null,null,null,{"$f":"IF(E18=\"\",\"\",ASC(E18))","v":""}]
[null,null,"Mail①",null,null,null,null,null,null,null,null,null,null,null,null,"※半角入力（大会前後の諸連絡用）",null,null,null,null,null,null,null,null,null,null,{"$f":"IF(E19=\"\",\"\",ASC(E19))","v":""}]
[null,null,"Mail②",null,null,null,null,null,null,null,null,null,null,null,null,"※半角入力（大会中の諸連絡用）",null,null,null,null,null,null,null,null,null,null,{"$f":"IF(E20=\"\",\"\",ASC(E20))","v":""}]
[]
[null,null,null,null,"姓",null,null,"名",null,"姓（かな）",null,null,"名（かな）"]
["監　督（30）",null,null,null,null,null,null,null,null,null,null,null,null,null,null,null,null,null,null,null,null,null,{"$f":"IF(CONCATENATE(E23,\"　\",H23)=\"　\",\"\",CONCATENATE(E23,\"　\",H23))","v":""},{"$f":"IF(CONCATENATE(J23,\"　\",M23)=\"　\",\"\",CONCATENATE(J23,\"　\",M23))","v":""},{"$f":"IF(CONCATENATE(J23,\"　\",M23)=\"　\",\"\",CONCATENATE(ASC(PHONETIC(J23)),\" \",ASC(PHONETIC(M23))))","v":""},null,{"$f":"IF(W23=\"\",\"\",W23)","v":""},{"$f":"IF(X23=\"\",\"\",X23)","v":""}]
["コーチ（31）","UN31",null,null,null,null,null,null,null,null,null,null,null,null,null,null,null,null,null,null,null,null,{"$f":"IF(CONCATENATE(E24,\"　\",H24)=\"　\",\"\",CONCATENATE(E24,\"　\",H24))","v":""},{"$f":"IF(CONCATENATE(J24,\"　\",M24)=\"　\",\"\",CONCATENATE(J24,\"　\",M24))","v":""},{"$f":"IF(CONCATENATE(J24,\"　\",M24)=\"　\",\"\",CONCATENATE(ASC(PHONETIC(J24)),\" \",ASC(PHONETIC(M24))))","v":""},null,{"$f":"IF(W24=\"\",\"\",W24)","v":""},{"$f":"IF(X24=\"\",\"\",X24)","v":""}]
["コーチ（32）","UN32",null,null,null,null,null,null,null,null,null,null,null,null,null,null,null,null,null,null,null,null,{"$f":"IF(CONCATENATE(E25,\"　\",H25)=\"　\",\"\",CONCATENATE(E25,\"　\",H25))","v":""},{"$f":"IF(CONCATENATE(J25,\"　\",M25)=\"　\",\"\",CONCATENATE(J25,\"　\",M25))","v":""},{"$f":"IF(CONCATENATE(J25,\"　\",M25)=\"　\",\"\",CONCATENATE(ASC(PHONETIC(J25)),\" \",ASC(PHONETIC(M25))))","v":""},null,"",""]
["スコアラー",null,null,null,null,null,null,null,null,null,null,null,null,null,null,"※当該年度有資格者に限る",null,null,null,null,null,null,{"$f":"IF(CONCATENATE(E26,\"　\",H26)=\"　\",\"\",CONCATENATE(E26,\"　\",H26))","v":""},{"$f":"IF(CONCATENATE(J26,\"　\",M26)=\"　\",\"\",CONCATENATE(J26,\"　\",M26))","v":""},{"$f":"IF(CONCATENATE(J26,\"　\",M26)=\"　\",\"\",CONCATENATE(ASC(PHONETIC(J26)),\" \",ASC(PHONETIC(M26))))","v":""},null,{"$f":"IF(W26=\"\",\"\",W26)","v":""},""]
["トレーナー",null,null,null,null,null,null,null,null,null,null,null,null,null,null,null,null,null,null,null,null,null,{"$f":"IF(CONCATENATE(E27,\"　\",H27)=\"　\",\"\",CONCATENATE(E27,\"　\",H27))","v":""},{"$f":"IF(CONCATENATE(J27,\"　\",M27)=\"　\",\"\",CONCATENATE(J27,\"　\",M27))","v":""},{"$f":"IF(CONCATENATE(J27,\"　\",M27)=\"　\",\"\",CONCATENATE(ASC(PHONETIC(J27)),\" \",ASC(PHONETIC(M27))))","v":""},null,"",""]
[null,null,null,null,null,null,null,null,null,null,null,null,null,null,null,null,null,null,null,null,null,null,null,null,null,null,{"$f":"IF(E28=\"\",\"\",E28)","v":""}]
["指導者\n資格１",null,"氏　名",null,null,null,null,null,null,null,"※選択または入力してください",null,null,null,null,null,null,null,null,null,null,null,null,null,null,null,{"$f":"IF(E29=\"\",\"\",E29)","v":""}]
[null,null,"資格名",null,null,null,null,null,null,null,"※選択してください",null,null,null,null,null,null,null,null,null,null,null,null,null,null,null,{"$f":"IF(E30=\"\",\"\",E30)","v":""}]
[null,null,"登録番号",null,null,null,null,null,null,null,"※半角入力",null,null,null,null,null,null,null,null,null,null,null,null,null,null,null,{"$f":"IF(E31=\"\",\"\",ASC(E31))","v":""}]
["指導者\n資格２",null,"氏　名",null,null,null,null,null,null,null,"※選択または入力してください",null,null,null,null,null,null,null,null,null,null,null,null,null,null,null,{"$f":"IF(E32=\"\",\"\",E32)","v":""}]
[null,null,"資格名",null,null,null,null,null,null,null,"※選択してください",null,null,null,null,null,null,null,null,null,null,null,null,null,null,null,{"$f":"IF(E33=\"\",\"\",E33)","v":""}]
[null,null,"登録番号",null,null,null,null,null,null,null,"※半角入力",null,null,null,null,null,null,null,null,null,null,null,null,null,null,null,{"$f":"IF(E34=\"\",\"\",ASC(E34))","v":""}]
[null,null,null,null,null,null,null,null,null,null,null,null,null,null,null,null,null,null,null,null,null,null,null,null,null,null,{"$f":"IF(E35=\"\",\"\",E35)","v":""}]
[null,null,null,"※半角",null,"※選択",null,"例：戸郷",null,"例：翔征",null,"例：とごう",null,null,"例：しょうせい",null,null,"例：2000/04/04",null,null,{"$f":"IF(U37=\"学年\",\"※入力\",\"\")","v":""},null,null,null,null,null,{"$f":"IF(E36=\"\",\"\",E36)","v":""}]
["選手",null,"No.","UN",null,"位置",null,"姓",null,"名",null,"姓（かな）",null,null,"名（かな）",null,null,null,null,null,"年齢",null,null,null,null,null,{"$f":"IF(E37=\"\",\"\",E37)","v":""},null,null,null,null,null,{"$f":"IF(U37=\"\",\"\",U37)","v":"年齢"}]
[null,null,1,null,null,null,null,null,null,null,null,null,null,null,null,null,null,null,null,null,null,null,{"$f":"IF(CONCATENATE(H38,\"　\",J38)=\"　\",\"\",CONCATENATE(H38,\"　\",J38))","v":""},{"$f":"IF(CONCATENATE(L38,\"　\",O38)=\"　\",\"\",CONCATENATE(L38,\"　\",O38))","v":""},{"$f":"IF(CONCATENATE(L38,\"　\",O38)=\"　\",\"\",CONCATENATE(ASC(PHONETIC(L38)),\" \",ASC(PHONETIC(O38))))","v":""},null,{"$f":"IF(C38=\"\",\"\",C38)","v":1},{"$f":"IF(D38=\"\",\"\",VALUE(D38))","v":""},{"$f":"IF(F38=\"\",\"\",F38)","v":""},{"$f":"IF(W38=\"\",\"\",W38)","v":""},{"$f":"IF(X38=\"\",\"\",X38)","v":""},{"$f":"IF(Y38=\"\",\"\",Y38)","v":""},{"$f":"IF(U38=\"\",\"\",U38)","v":""}]
[null,null,2,null,null,null,null,null,null,null,null,null,null,null,null,null,null,null,null,null,null,null,"","","",null,2,"","",{"$f":"IF(W39=\"\",\"\",W39)","v":""},{"$f":"IF(X39=\"\",\"\",X39)","v":""},{"$f":"IF(Y39=\"\",\"\",Y39)","v":""},""]
[null,null,3,null,null,null,null,null,null,null,null,null,null,null,null,null,null,null,null,null,null,null,"","","",null,3,"","","","","",""]
[null,null,4,null,null,null,null,null,null,null,null,null,null,null,null,null,null,null,null,null,null,null,"","","",null,4,"","","","","",""]
[null,null,5,null,null,null,null,null,null,null,null,null,null,null,null,null,null,null,null,null,null,null,"","","",null,5,"","","","","",""]
[null,null,6,null,null,null,null,null,null,null,null,null,null,null,null,null,null,null,null,null,null,null,"","","",null,6,"","","","","",""]
[null,null,7,null,null,null,null,null,null,null,null,null,null,null,null,null,null,null,null,null,null,null,"","","",null,7,"","","","","",""]
[null,null,8,null,null,null,null,null,null,null,null,null,null,null,null,null,null,null,null,null,null,null,"","","",null,8,"","","","","",""]
[null,null,9,null,null,null,null,null,null,null,null,null,null,null,null,null,null,null,null,null,null,null,"","","",null,9,"","","","","",""]
[null,null,10,null,null,null,null,null,null,null,null,null,null,null,null,null,null,null,null,null,null,null,"","","",null,10,"","","","","",""]
[null,null,11,null,null,null,null,null,null,null,null,null,null,null,null,null,null,null,null,null,null,null,"","","",null,11,"","","","","",""]
[null,null,12,null,null,null,null,null,null,null,null,null,null,null,null,null,null,null,null,null,null,null,"","","",null,12,"","","","","",""]
[null,null,13,null,null,null,null,null,null,null,null,null,null,null,null,null,null,null,null,null,null,null,"","","",null,13,"","","","","",""]
[null,null,14,null,null,null,null,null,null,null,null,null,null,null,null,null,null,null,null,null,null,null,"","","",null,14,"","","","","",""]
[null,null,15,null,null,null,null,null,null,null,null,null,null,null,null,null,null,null,null,null,null,null,"","","",null,15,"","","","","",""]
[null,null,16,null,null,null,null,null,null,null,null,null,null,null,null,null,null,null,null,null,null,null,"","","",null,16,"","","","","",""]
[null,null,17,null,null,null,null,null,null,null,null,null,null,null,null,null,null,null,null,null,null,null,"","","",null,17,"","","","","",""]
[null,null,18,null,null,null,null,null,null,null,null,null,null,null,null,null,null,null,null,null,null,null,"","","",null,18,"","","","","",""]
[null,null,19,null,null,null,null,null,null,null,null,null,null,null,null,null,null,null,null,null,null,null,"","","",null,19,"","","","","",""]
[null,null,20,null,null,null,null,null,null,null,null,null,null,null,null,null,null,null,null,null,null,null,"","","",null,20,"","","","","",""]
[null,null,21,null,null,null,null,null,null,null,null,null,null,null,null,null,null,null,null,null,null,null,"","","",null,21,"","","","","",""]
[null,null,22,null,null,null,null,null,null,null,null,null,null,null,null,null,null,null,null,null,null,null,"","","",null,22,"","","","","",""]
[null,null,23,null,null,null,null,null,null,null,null,null,null,null,null,null,null,null,null,null,null,null,"","","",null,23,"","","","","",""]
[null,null,24,null,null,null,null,null,null,null,null,null,null,null,null,null,null,null,null,null,null,null,"","","",null,24,"","","","","",""]
[null,null,25,null,null,null,null,null,null,null,null,null,null,null,null,null,null,null,null,null,null,null,"","","",null,25,"","","","","",""]
[]
["当大会の\n過去の成績",null,"出場",null,null,null,"回目","※半角入力（今大会を含む）",null,null,null,null,null,null,null,null,null,null,null,null,null,null,null,null,null,null,{"$f":"IF(E64=\"\",\"\",VALUE(E64))","v":""}]
[null,null,"優勝",null,null,null,"回","※半角入力",null,null,null,null,null,null,null,null,null,null,null,null,null,null,null,null,null,null,{"$f":"IF(E65=\"\",\"\",VALUE(E65))","v":""}]
[null,null,"準優勝",null,null,null,"回","※半角入力",null,null,null,null,null,null,null,null,null,null,null,null,null,null,null,null,null,null,{"$f":"IF(E66=\"\",\"\",VALUE(E66))","v":""}]
[null,null,"３位",null,null,null,"回","※半角入力",null,null,null,null,null,null,null,null,null,null,null,null,null,null,null,null,null,null,{"$f":"IF(E67=\"\",\"\",VALUE(E67))","v":""}]
["チーム紹介",null,null,null,null,null,null,null,null,null,null,null,null,null,null,null,"※Alt＋Enterで改行できます",null,null,null,null,null,null,null,null,null,{"$f":"IF(E68=\"\",\"\",E68)","v":""}]
[]
[]
[]
["協会会長氏名",null,null,null,null,null,null,null,null,"※都道府県協会　会長です",null,null,null,null,null,null,null,null,null,null,null,null,null,null,null,null,{"$f":"IF(E72=\"\",\"\",E72)","v":""}]

{"sheet":"申込み","index":3,"n_rows":29,"n_cols":72,"rows_kept":29,"cut":false,"hidden":true,"merged":[[23,41,24,57],[23,58,24,70],[28,58,29,70],[20,50,20,52],[20,57,20,59],[20,64,20,66],[19,60,20,63],[19,53,20,56],[28,71,29,72],[25,46,26,49],[25,53,26,56],[25,60,26,63],[26,41,26,45],[26,50,26,52],[26,57,26,59],[26,64,26,66],[28,41,29,46],[28,47,29,57],[2,0,3,73],[7,34,9,37],[23,71,24,72],[20,0,20,40],[23,0,23,29],[22,0,22,29],[20,41,20,45],[16,48,16,51],[17,48,17,51],[17,52,17,73],[16,52,16,73],[11,49,13,73],[14,65,14,73],[19,46,20,49],[7,11,7,33],[16,10,17,21],[14,10,15,21],[12,10,13,21],[10,10,11,21],[16,30,17,41],[12,30,13,41],[12,22,13,29],[16,22,17,29],[14,22,14,41],[10,22,11,29],[10,30,11,41],[10,48,10,49],[10,42,17,47],[7,38,7,39],[7,40,7,73],[8,39,9,73],[15,52,15,60],[14,52,14,60],[14,61,14,64],[15,48,15,51],[14,48,14,51],[15,64,15,73],[15,61,15,63],[10,50,10,73],[5,0,6,9],[26,0,26,7],[26,8,26,15],[26,16,26,40],[28,0,28,29],[7,0,7,9],[16,7,17,9],[16,0,17,6],[12,7,13,9],[12,0,13,6],[14,7,15,9],[14,0,15,6],[10,0,11,9],[8,0,9,9],[5,10,6,18],[8,11,9,33]]}
["  参加申込書"]
[]
[{"$f":"入力シート!AA2","v":""}]
[]
[]
["所属\n都道府県名",null,null,null,null,null,null,null,null,null,{"$f":"入力シート!AA3","v":""}]
[]
["ふりがな",null,null,null,null,null,null,null,null,null,null,{"$f":"入力シート!AA4","v":""},null,null,null,null,null,null,null,null,null,null,null,null,null,null,null,null,null,null,null,null,null,null,"所在地",null,null,null,"〒",null,{"$f":"入力シート!AA6","v":""}]
["チーム名",null,null,null,null,null,null,null,null,null,null,{"$f":"入力シート!AA5","v":""},null,null,null,null,null,null,null,null,null,null,null,null,null,null,null,null,null,null,null,null,null,null,null,null,null,null,null,{"$f":"入力シート!AA7","v":""}]
[]
["代表者名",null,null,null,null,null,null,null,null,null,{"$f":"入力シート!AA11","v":""},null,null,null,null,null,null,null,null,null,null,null,"連絡責任者",null,null,null,null,null,null,null,{"$f":"入力シート!AA13","v":""},null,null,null,null,null,null,null,null,null,null,null,"連絡先",null,null,null,null,null,"〒",null,{"$f":"入力シート!AA14","v":""}]
[null,null,null,null,null,null,null,null,null,null,null,null,null,null,null,null,null,null,null,null,null,null,null,null,null,null,null,null,null,null,null,null,null,null,null,null,null,null,null,null,null,null,null,null,null,null,null,null,null,{"$f":"入力シート!AA15","v":""}]
["監　督",null,null,null,null,null,null,30,null,null,{"$f":"入力シート!AA23","v":""},null,null,null,null,null,null,null,null,null,null,null,"スコアラー名",null,null,null,null,null,null,null,{"$f":"入力シート!AA26","v":""}]
[]
["コーチ",null,null,null,null,null,null,31,null,null,{"$f":"入力シート!AA24","v":""},null,null,null,null,null,null,null,null,null,null,null,"※スコアラーは公式記録員有資格者とする。",null,null,null,null,null,null,null,null,null,null,null,null,null,null,null,null,null,null,null,null,null,null,null,null,null,"ＴＥＬ",null,null,null,{"$f":"入力シート!AA16","v":""},null,null,null,null,null,null,null,null,"ＦＡＸ",null,null,null,{"$f":"入力シート!AA17","v":""}]
[null,null,null,null,null,null,null,null,null,null,null,null,null,null,null,null,null,null,null,null,null,null,null,null,null,null,null,null,null,null,null,null,null,null,null,null,null,null,null,null,null,null,null,null,null,null,null,null,"携帯",null,null,null,{"$f":"入力シート!AA18","v":""}]
["コーチ",null,null,null,null,null,null,32,null,null,{"$f":"入力シート!AA25","v":""},null,null,null,null,null,null,null,null,null,null,null,"トレーナー名",null,null,null,null,null,null,null,{"$f":"入力シート!AA27","v":""},null,null,null,null,null,null,null,null,null,null,null,null,null,null,null,null,null,"Mail①",null,null,null,{"$f":"入力シート!AA19","v":""}]
[null,null,null,null,null,null,null,null,null,null,null,null,null,null,null,null,null,null,null,null,null,null,null,null,null,null,null,null,null,null,null,null,null,null,null,null,null,null,null,null,null,null,null,null,null,null,null,null,"Mail②",null,null,null,{"$f":"入力シート!AA19","v":""}]
[]
[]
["プログラム掲載の選手は身体・人物ともに適当と認め、参加申込みをいたします。",null,null,null,null,null,null,null,null,null,null,null,null,null,null,null,null,null,null,null,null,null,null,null,null,null,null,null,null,null,null,null,null,null,null,null,null,null,null,null,null,"令和",null,null,null,null,null,null,null,null,"年",null,null,null,null,null,null,"月",null,null,null,null,null,null,"日"]
[]
["公益財団法人　日本ソフトボール協会"]
["都道府県協会長　　殿",null,null,null,null,null,null,null,null,null,null,null,null,null,null,null,null,null,null,null,null,null,null,null,null,null,null,null,null,null,null,null,null,null,null,null,null,null,null,null,null,"所属団体長（チーム代表者）",null,null,null,null,null,null,null,null,null,null,null,null,null,null,null,null,{"$f":"入力シート!AA11","v":""},null,null,null,null,null,null,null,null,null,null,null,null,"印"]
[]
[]
["上記チームは",null,null,null,null,null,null,null,{"$f":"入力シート!AA3","v":""},null,null,null,null,null,null,null,"代表として出場権を得ましたので証明します。",null,null,null,null,null,null,null,null,null,null,null,null,null,null,null,null,null,null,null,null,null,null,null,null,"令和",null,null,null,null,null,null,null,null,"年",null,null,null,null,null,null,"月",null,null,null,null,null,null,"日"]
[]
["公益財団法人　日本ソフトボール協会長殿",null,null,null,null,null,null,null,null,null,null,null,null,null,null,null,null,null,null,null,null,null,null,null,null,null,null,null,null,null,null,null,null,null,null,null,null,null,null,null,null,{"$f":"入力シート!AA3","v":""},null,null,null,null,null,"ソフトボール協会長",null,null,null,null,null,null,null,null,null,null,{"$f":"入力シート!AA72","v":""},null,null,null,null,null,null,null,null,null,null,null,null,"印"]

{"sheet":"プログラム掲載","index":4,"n_rows":51,"n_cols":88,"rows_kept":51,"cut":false,"hidden":false,"merged":[[50,72,50,78],[50,79,50,86],[50,87,50,89],[49,72,49,78],[49,79,49,86],[49,87,49,89],[48,72,48,78],[48,79,48,86],[48,87,48,89],[14,0,14,14],[14,15,14,35],[14,36,14,44],[14,45,14,59],[14,60,14,80],[14,81,14,89],[0,0,0,89],[1,0,1,89],[11,0,11,89],[12,0,12,89],[13,0,13,14],[13,15,13,35],[13,36,13,44],[13,45,13,59],[13,60,13,80],[13,81,13,89],[7,46,7,69],[9,35,9,45],[9,46,9,69],[17,4,18,7],[17,39,18,44],[19,4,20,7],[19,0,20,3],[19,39,20,44],[23,0,24,3],[23,4,24,7],[23,8,24,14],[23,15,23,38],[23,39,24,44],[24,15,24,38],[21,0,22,3],[21,4,22,7],[21,8,22,14],[21,15,21,38],[21,39,22,44],[22,15,22,38],[19,8,20,14],[18,15,18,38],[17,15,17,38],[17,8,18,14],[20,15,20,38],[19,15,19,38],[17,0,18,3],[27,0,28,3],[27,4,28,7],[27,8,28,14],[27,15,27,38],[27,39,28,44],[28,15,28,38],[25,0,26,3],[25,4,26,7],[25,8,26,14],[25,15,25,38],[25,39,26,44],[26,15,26,38],[31,0,32,3],[31,4,32,7],[31,8,32,14],[31,15,31,38],[31,39,32,44],[32,15,32,38],[29,0,30,3],[29,4,30,7],[29,8,30,14],[29,15,29,38],[29,39,30,44],[30,15,30,38],[35,0,36,3],[35,4,36,7],[35,8,36,14],[35,15,35,38],[35,39,36,44],[36,15,36,38],[33,0,34,3],[33,4,34,7],[33,8,34,14],[33,15,33,38],[33,39,34,44],[34,15,34,38],[39,0,40,3],[39,4,40,7],[39,8,40,14],[39,15,39,38],[39,39,40,44],[40,15,40,38],[37,0,38,3],[37,4,38,7],[37,8,38,14],[37,15,37,38],[37,39,38,44],[38,15,38,38],[43,0,44,3],[43,4,44,7],[43,8,44,14],[43,15,43,38],[43,39,44,44],[44,15,44,38],[41,0,42,3],[41,4,42,7],[41,8,42,14],[41,15,41,38],[41,39,42,44],[42,15,42,38],[21,45,22,48],[21,49,22,52],[21,53,22,59],[21,60,21,83],[21,84,22,89],[22,60,22,83],[19,45,20,48],[19,49,20,52],[19,53,20,59],[19,60,19,83],[19,84,20,89],[20,60,20,83],[25,45,26,48],[25,49,26,52],[25,53,26,59],[25,60,25,83],[25,84,26,89],[26,60,26,83],[23,45,24,48],[23,49,24,52],[23,53,24,59],[23,60,23,83],[23,84,24,89],[24,60,24,83],[29,45,30,48],[29,49,30,52],[29,53,30,59],[29,60,29,83],[29,84,30,89],[30,60,30,83],[27,45,28,48],[27,49,28,52],[27,53,28,59],[27,60,27,83],[27,84,28,89],[28,60,28,83],[33,45,34,48],[33,49,34,52],[33,53,34,59],[33,60,33,83],[33,84,34,89],[34,60,34,83],[31,45,32,48],[31,49,32,52],[31,53,32,59],[31,60,31,83],[31,84,32,89],[32,60,32,83],[37,45,38,48],[37,49,38,52],[37,53,38,59],[37,60,37,83],[37,84,38,89],[38,60,38,83],[35,45,36,48],[35,49,36,52],[35,53,36,59],[35,60,35,83],[35,84,36,89],[36,60,36,83],[17,45,18,48],[17,49,18,52],[17,53,18,59],[17,60,17,83],[17,84,18,89],[18,60,18,83],[43,45,44,48],[43,49,44,52],[43,53,44,59],[43,60,43,83],[43,84,44,89],[44,60,44,83],[41,45,42,48],[41,49,42,52],[41,53,42,59],[41,60,41,83],[41,84,42,89],[42,60,42,83],[39,45,40,48],[39,49,40,52],[39,53,40,59],[39,60,39,83],[39,84,40,89],[40,60,40,83],[46,18,46,35],[47,72,47,78],[47,79,47,89],[46,72,46,89],[47,0,50,71],[16,35,16,54],[3,11,3,20],[5,12,5,88],[4,12,4,88],[4,0,4,10],[3,0,3,10],[6,11,6,34],[7,11,7,34],[8,11,8,34],[9,11,9,34],[9,7,9,10],[8,7,8,10],[7,7,7,10],[9,0,9,6],[7,0,7,6],[8,0,8,6],[6,0,6,10],[5,0,5,10],[7,35,7,45]]}
["【大会プログラム掲載用】"]
[{"$f":"入力シート!AA2","v":""}]
[]
["都道府県名",null,null,null,null,null,null,null,null,null,null,{"$f":"入力シート!AA3","v":""}]
["ふりがな",null,null,null,null,null,null,null,null,null,null,null,{"$f":"入力シート!AA4","v":""}]
["チーム名",null,null,null,null,null,null,null,null,null,null,null,{"$f":"入力シート!AA5","v":""}]
["代表者名",null,null,null,null,null,null,null,null,null,null,{"$f":"入力シート!AA11:AA11","v":""}]
["監督名",null,null,null,null,null,null,30,null,null,null,{"$f":"入力シート!AA23","v":""},null,null,null,null,null,null,null,null,null,null,null,null,null,null,null,null,null,null,null,null,null,null,null,"スコアラー名",null,null,null,null,null,null,null,null,null,null,{"$f":"入力シート!AA26","v":""}]
["コーチ名",null,null,null,null,null,null,31,null,null,null,{"$f":"入力シート!AA24","v":""},null,null,null,null,null,null,null,null,null,null,null,null,null,null,null,null,null,null,null,null,null,null,null,null,null,null,null,null,null,null,null,null,null,null,null,null,null,null,null,null,null,null,null,null,null,null,null,null,null,null,null,null,null,null,null,null,null,"※スコアラーは公式記録員有資格者"]
["コーチ名",null,null,null,null,null,null,32,null,null,null,{"$f":"入力シート!AA25","v":""},null,null,null,null,null,null,null,null,null,null,null,null,null,null,null,null,null,null,null,null,null,null,null,"トレーナー",null,null,null,null,null,null,null,null,null,null,{"$f":"入力シート!AA27","v":""}]
[]
["※以下の指導者資格のいずれかを有する者１名の氏名と資格名、登録番号を記載すること。（２名いる場合は２名）"]
["　指導者資格：公認ソフトボールコーチ・上級コーチ、公認ソフトボール指導員・上級指導員、公認準指導員"]
["氏名",null,null,null,null,null,null,null,null,null,null,null,null,null,null,"資格",null,null,null,null,null,null,null,null,null,null,null,null,null,null,null,null,null,null,null,null,"登録番号",null,null,null,null,null,null,null,null,"氏名",null,null,null,null,null,null,null,null,null,null,null,null,null,null,"資格",null,null,null,null,null,null,null,null,null,null,null,null,null,null,null,null,null,null,null,null,"登録番号"]
[{"$f":"入力シート!AA29","v":""},null,null,null,null,null,null,null,null,null,null,null,null,null,null,{"$f":"入力シート!AA30","v":""},null,null,null,null,null,null,null,null,null,null,null,null,null,null,null,null,null,null,null,null,{"$f":"入力シート!AA31","v":""},null,null,null,null,null,null,null,null,{"$f":"入力シート!AA32","v":""},null,null,null,null,null,null,null,null,null,null,null,null,null,null,{"$f":"入力シート!AA33","v":""},null,null,null,null,null,null,null,null,null,null,null,null,null,null,null,null,null,null,null,null,{"$f":"入力シート!AA34","v":""}]
[]
[null,null,null,null,"※UN=ユニフォームナンバー",null,null,null,null,null,null,null,null,null,null,null,null,null,null,null,null,null,null,null,null,null,null,null,null,null,null,null,null,null,null,"【　選　手　名　簿　】"]
["No.",null,null,null,"UN",null,null,null,"位置",null,null,null,null,null,null,"ふりがな",null,null,null,null,null,null,null,null,null,null,null,null,null,null,null,null,null,null,null,null,null,null,null,{"$f":"入力シート!AG37","v":"年齢"},null,null,null,null,null,"No.",null,null,null,"UN",null,null,null,"位置",null,null,null,null,null,null,"ふりがな",null,null,null,null,null,null,null,null,null,null,null,null,null,null,null,null,null,null,null,null,null,null,null,{"$f":"AN18","v":"年齢"}]
[null,null,null,null,null,null,null,null,null,null,null,null,null,null,null,"氏名",null,null,null,null,null,null,null,null,null,null,null,null,null,null,null,null,null,null,null,null,null,null,null,null,null,null,null,null,null,null,null,null,null,null,null,null,null,null,null,null,null,null,null,null,"氏名"]
[1,null,null,null,{"$f":"IFERROR(VLOOKUP(A20,入力シート!$AA$38:$AG$62,2,FALSE),\"\")","v":""},null,null,null,{"$f":"IFERROR(VLOOKUP(A20,入力シート!$AA$38:$AG$62,3,FALSE),\"\")","v":""},null,null,null,null,null,null,{"$f":"IFERROR(VLOOKUP(A20,入力シート!$AA$38:$AG$62,5,FALSE),\"\")","v":""},null,null,null,null,null,null,null,null,null,null,null,null,null,null,null,null,null,null,null,null,null,null,null,{"$f":"IFERROR(VLOOKUP(A20,入力シート!$AA$38:$AG$62,7,FALSE),\"\")","v":""},null,null,null,null,null,14,null,null,null,{"$f":"IFERROR(VLOOKUP(AT20,入力シート!$AA$38:$AG$62,2,FALSE),\"\")","v":""},null,null,null,{"$f":"IFERROR(VLOOKUP(AT20,入力シート!$AA$38:$AG$62,3,FALSE),\"\")","v":""},null,null,null,null,null,null,{"$f":"IFERROR(VLOOKUP(AT20,入力シート!$AA$38:$AG$62,5,FALSE),\"\")","v":""},null,null,null,null,null,null,null,null,null,null,null,null,null,null,null,null,null,null,null,null,null,null,null,{"$f":"IFERROR(VLOOKUP(AT20,入力シート!$AA$38:$AG$62,7,FALSE),\"\")","v":""}]
[null,null,null,null,null,null,null,null,null,null,null,null,null,null,null,{"$f":"IFERROR(VLOOKUP(A20,入力シート!$AA$38:$AG$62,4,FALSE),\"\")","v":""},null,null,null,null,null,null,null,null,null,null,null,null,null,null,null,null,null,null,null,null,null,null,null,null,null,null,null,null,null,null,null,null,null,null,null,null,null,null,null,null,null,null,null,null,{"$f":"IFERROR(VLOOKUP(AT20,入力シート!$AA$38:$AG$62,4,FALSE),\"\")","v":""}]
[2,null,null,null,{"$f":"IFERROR(VLOOKUP(A22,入力シート!$AA$38:$AG$62,2,FALSE),\"\")","v":""},null,null,null,{"$f":"IFERROR(VLOOKUP(A22,入力シート!$AA$38:$AG$62,3,FALSE),\"\")","v":""},null,null,null,null,null,null,{"$f":"IFERROR(VLOOKUP(A22,入力シート!$AA$38:$AG$62,5,FALSE),\"\")","v":""},null,null,null,null,null,null,null,null,null,null,null,null,null,null,null,null,null,null,null,null,null,null,null,{"$f":"IFERROR(VLOOKUP(A22,入力シート!$AA$38:$AG$62,7,FALSE),\"\")","v":""},null,null,null,null,null,15,null,null,null,{"$f":"IFERROR(VLOOKUP(AT22,入力シート!$AA$38:$AG$62,2,FALSE),\"\")","v":""},null,null,null,{"$f":"IFERROR(VLOOKUP(AT22,入力シート!$AA$38:$AG$62,3,FALSE),\"\")","v":""},null,null,null,null,null,null,{"$f":"IFERROR(VLOOKUP(AT22,入力シート!$AA$38:$AG$62,5,FALSE),\"\")","v":""},null,null,null,null,null,null,null,null,null,null,null,null,null,null,null,null,null,null,null,null,null,null,null,{"$f":"IFERROR(VLOOKUP(AT22,入力シート!$AA$38:$AG$62,7,FALSE),\"\")","v":""}]
[3,null,null,null,null,null,null,null,null,null,null,null,null,null,null,{"$f":"IFERROR(VLOOKUP(A22,入力シート!$AA$38:$AG$62,4,FALSE),\"\")","v":""},null,null,null,null,null,null,null,null,null,null,null,null,null,null,null,null,null,null,null,null,null,null,null,null,null,null,null,null,null,3,null,null,null,null,null,null,null,null,null,null,null,null,null,null,{"$f":"IFERROR(VLOOKUP(AT22,入力シート!$AA$38:$AG$62,4,FALSE),\"\")","v":""}]
[3,null,null,null,{"$f":"IFERROR(VLOOKUP(A24,入力シート!$AA$38:$AG$62,2,FALSE),\"\")","v":""},null,null,null,{"$f":"IFERROR(VLOOKUP(A24,入力シート!$AA$38:$AG$62,3,FALSE),\"\")","v":""},null,null,null,null,null,null,{"$f":"IFERROR(VLOOKUP(A24,入力シート!$AA$38:$AG$62,5,FALSE),\"\")","v":""},null,null,null,null,null,null,null,null,null,null,null,null,null,null,null,null,null,null,null,null,null,null,null,{"$f":"IFERROR(VLOOKUP(A24,入力シート!$AA$38:$AG$62,7,FALSE),\"\")","v":""},null,null,null,null,null,16,null,null,null,{"$f":"IFERROR(VLOOKUP(AT24,入力シート!$AA$38:$AG$62,2,FALSE),\"\")","v":""},null,null,null,{"$f":"IFERROR(VLOOKUP(AT24,入力シート!$AA$38:$AG$62,3,FALSE),\"\")","v":""},null,null,null,null,null,null,{"$f":"IFERROR(VLOOKUP(AT24,入力シート!$AA$38:$AG$62,5,FALSE),\"\")","v":""},null,null,null,null,null,null,null,null,null,null,null,null,null,null,null,null,null,null,null,null,null,null,null,{"$f":"IFERROR(VLOOKUP(AT24,入力シート!$AA$38:$AG$62,7,FALSE),\"\")","v":""}]
[4,null,null,null,null,null,null,null,null,null,null,null,null,null,null,{"$f":"IFERROR(VLOOKUP(A24,入力シート!$AA$38:$AG$62,4,FALSE),\"\")","v":""},null,null,null,null,null,null,null,null,null,null,null,null,null,null,null,null,null,null,null,null,null,null,null,null,null,null,null,null,null,4,null,null,null,null,null,null,null,null,null,null,null,null,null,null,{"$f":"IFERROR(VLOOKUP(AT24,入力シート!$AA$38:$AG$62,4,FALSE),\"\")","v":""}]
[4,null,null,null,{"$f":"IFERROR(VLOOKUP(A26,入力シート!$AA$38:$AG$62,2,FALSE),\"\")","v":""},null,null,null,{"$f":"IFERROR(VLOOKUP(A26,入力シート!$AA$38:$AG$62,3,FALSE),\"\")","v":""},null,null,null,null,null,null,{"$f":"IFERROR(VLOOKUP(A26,入力シート!$AA$38:$AG$62,5,FALSE),\"\")","v":""},null,null,null,null,null,null,null,null,null,null,null,null,null,null,null,null,null,null,null,null,null,null,null,{"$f":"IFERROR(VLOOKUP(A26,入力シート!$AA$38:$AG$62,7,FALSE),\"\")","v":""},null,null,null,null,null,17,null,null,null,{"$f":"IFERROR(VLOOKUP(AT26,入力シート!$AA$38:$AG$62,2,FALSE),\"\")","v":""},null,null,null,{"$f":"IFERROR(VLOOKUP(AT26,入力シート!$AA$38:$AG$62,3,FALSE),\"\")","v":""},null,null,null,null,null,null,{"$f":"IFERROR(VLOOKUP(AT26,入力シート!$AA$38:$AG$62,5,FALSE),\"\")","v":""},null,null,null,null,null,null,null,null,null,null,null,null,null,null,null,null,null,null,null,null,null,null,null,{"$f":"IFERROR(VLOOKUP(AT26,入力シート!$AA$38:$AG$62,7,FALSE),\"\")","v":""}]
[5,null,null,null,null,null,null,null,null,null,null,null,null,null,null,{"$f":"IFERROR(VLOOKUP(A26,入力シート!$AA$38:$AG$62,4,FALSE),\"\")","v":""},null,null,null,null,null,null,null,null,null,null,null,null,null,null,null,null,null,null,null,null,null,null,null,null,null,null,null,null,null,5,null,null,null,null,null,null,null,null,null,null,null,null,null,null,{"$f":"IFERROR(VLOOKUP(AT26,入力シート!$AA$38:$AG$62,4,FALSE),\"\")","v":""}]
[5,null,null,null,{"$f":"IFERROR(VLOOKUP(A28,入力シート!$AA$38:$AG$62,2,FALSE),\"\")","v":""},null,null,null,{"$f":"IFERROR(VLOOKUP(A28,入力シート!$AA$38:$AG$62,3,FALSE),\"\")","v":""},null,null,null,null,null,null,{"$f":"IFERROR(VLOOKUP(A28,入力シート!$AA$38:$AG$62,5,FALSE),\"\")","v":""},null,null,null,null,null,null,null,null,null,null,null,null,null,null,null,null,null,null,null,null,null,null,null,{"$f":"IFERROR(VLOOKUP(A28,入力シート!$AA$38:$AG$62,7,FALSE),\"\")","v":""},null,null,null,null,null,18,null,null,null,{"$f":"IFERROR(VLOOKUP(AT28,入力シート!$AA$38:$AG$62,2,FALSE),\"\")","v":""},null,null,null,{"$f":"IFERROR(VLOOKUP(AT28,入力シート!$AA$38:$AG$62,3,FALSE),\"\")","v":""},null,null,null,null,null,null,{"$f":"IFERROR(VLOOKUP(AT28,入力シート!$AA$38:$AG$62,5,FALSE),\"\")","v":""},null,null,null,null,null,null,null,null,null,null,null,null,null,null,null,null,null,null,null,null,null,null,null,{"$f":"IFERROR(VLOOKUP(AT28,入力シート!$AA$38:$AG$62,7,FALSE),\"\")","v":""}]
[null,null,null,null,null,null,null,null,null,null,null,null,null,null,null,{"$f":"IFERROR(VLOOKUP(A28,入力シート!$AA$38:$AG$62,4,FALSE),\"\")","v":""},null,null,null,null,null,null,null,null,null,null,null,null,null,null,null,null,null,null,null,null,null,null,null,null,null,null,null,null,null,null,null,null,null,null,null,null,null,null,null,null,null,null,null,null,{"$f":"IFERROR(VLOOKUP(AT28,入力シート!$AA$38:$AG$62,4,FALSE),\"\")","v":""}]
[6,null,null,null,{"$f":"IFERROR(VLOOKUP(A30,入力シート!$AA$38:$AG$62,2,FALSE),\"\")","v":""},null,null,null,{"$f":"IFERROR(VLOOKUP(A30,入力シート!$AA$38:$AG$62,3,FALSE),\"\")","v":""},null,null,null,null,null,null,{"$f":"IFERROR(VLOOKUP(A30,入力シート!$AA$38:$AG$62,5,FALSE),\"\")","v":""},null,null,null,null,null,null,null,null,null,null,null,null,null,null,null,null,null,null,null,null,null,null,null,{"$f":"IFERROR(VLOOKUP(A30,入力シート!$AA$38:$AG$62,7,FALSE),\"\")","v":""},null,null,null,null,null,19,null,null,null,{"$f":"IFERROR(VLOOKUP(AT30,入力シート!$AA$38:$AG$62,2,FALSE),\"\")","v":""},null,null,null,{"$f":"IFERROR(VLOOKUP(AT30,入力シート!$AA$38:$AG$62,3,FALSE),\"\")","v":""},null,null,null,null,null,null,{"$f":"IFERROR(VLOOKUP(AT30,入力シート!$AA$38:$AG$62,5,FALSE),\"\")","v":""},null,null,null,null,null,null,null,null,null,null,null,null,null,null,null,null,null,null,null,null,null,null,null,{"$f":"IFERROR(VLOOKUP(AT30,入力シート!$AA$38:$AG$62,7,FALSE),\"\")","v":""}]
[null,null,null,null,null,null,null,null,null,null,null,null,null,null,null,{"$f":"IFERROR(VLOOKUP(A30,入力シート!$AA$38:$AG$62,4,FALSE),\"\")","v":""},null,null,null,null,null,null,null,null,null,null,null,null,null,null,null,null,null,null,null,null,null,null,null,null,null,null,null,null,null,null,null,null,null,null,null,null,null,null,null,null,null,null,null,null,{"$f":"IFERROR(VLOOKUP(AT30,入力シート!$AA$38:$AG$62,4,FALSE),\"\")","v":""}]
[7,null,null,null,{"$f":"IFERROR(VLOOKUP(A32,入力シート!$AA$38:$AG$62,2,FALSE),\"\")","v":""},null,null,null,{"$f":"IFERROR(VLOOKUP(A32,入力シート!$AA$38:$AG$62,3,FALSE),\"\")","v":""},null,null,null,null,null,null,{"$f":"IFERROR(VLOOKUP(A32,入力シート!$AA$38:$AG$62,5,FALSE),\"\")","v":""},null,null,null,null,null,null,null,null,null,null,null,null,null,null,null,null,null,null,null,null,null,null,null,{"$f":"IFERROR(VLOOKUP(A32,入力シート!$AA$38:$AG$62,7,FALSE),\"\")","v":""},null,null,null,null,null,20,null,null,null,{"$f":"IFERROR(VLOOKUP(AT32,入力シート!$AA$38:$AG$62,2,FALSE),\"\")","v":""},null,null,null,{"$f":"IFERROR(VLOOKUP(AT32,入力シート!$AA$38:$AG$62,3,FALSE),\"\")","v":""},null,null,null,null,null,null,{"$f":"IFERROR(VLOOKUP(AT32,入力シート!$AA$38:$AG$62,5,FALSE),\"\")","v":""},null,null,null,null,null,null,null,null,null,null,null,null,null,null,null,null,null,null,null,null,null,null,null,{"$f":"IFERROR(VLOOKUP(AT32,入力シート!$AA$38:$AG$62,7,FALSE),\"\")","v":""}]
[null,null,null,null,null,null,null,null,null,null,null,null,null,null,null,{"$f":"IFERROR(VLOOKUP(A32,入力シート!$AA$38:$AG$62,4,FALSE),\"\")","v":""},null,null,null,null,null,null,null,null,null,null,null,null,null,null,null,null,null,null,null,null,null,null,null,null,null,null,null,null,null,null,null,null,null,null,null,null,null,null,null,null,null,null,null,null,{"$f":"IFERROR(VLOOKUP(AT32,入力シート!$AA$38:$AG$62,4,FALSE),\"\")","v":""}]
[8,null,null,null,{"$f":"IFERROR(VLOOKUP(A34,入力シート!$AA$38:$AG$62,2,FALSE),\"\")","v":""},null,null,null,{"$f":"IFERROR(VLOOKUP(A34,入力シート!$AA$38:$AG$62,3,FALSE),\"\")","v":""},null,null,null,null,null,null,{"$f":"IFERROR(VLOOKUP(A34,入力シート!$AA$38:$AG$62,5,FALSE),\"\")","v":""},null,null,null,null,null,null,null,null,null,null,null,null,null,null,null,null,null,null,null,null,null,null,null,{"$f":"IFERROR(VLOOKUP(A34,入力シート!$AA$38:$AG$62,7,FALSE),\"\")","v":""},null,null,null,null,null,21,null,null,null,{"$f":"IFERROR(VLOOKUP(AT34,入力シート!$AA$38:$AG$62,2,FALSE),\"\")","v":""},null,null,null,{"$f":"IFERROR(VLOOKUP(AT34,入力シート!$AA$38:$AG$62,3,FALSE),\"\")","v":""},null,null,null,null,null,null,{"$f":"IFERROR(VLOOKUP(AT34,入力シート!$AA$38:$AG$62,5,FALSE),\"\")","v":""},null,null,null,null,null,null,null,null,null,null,null,null,null,null,null,null,null,null,null,null,null,null,null,{"$f":"IFERROR(VLOOKUP(AT34,入力シート!$AA$38:$AG$62,7,FALSE),\"\")","v":""}]
[null,null,null,null,null,null,null,null,null,null,null,null,null,null,null,{"$f":"IFERROR(VLOOKUP(A34,入力シート!$AA$38:$AG$62,4,FALSE),\"\")","v":""},null,null,null,null,null,null,null,null,null,null,null,null,null,null,null,null,null,null,null,null,null,null,null,null,null,null,null,null,null,null,null,null,null,null,null,null,null,null,null,null,null,null,null,null,{"$f":"IFERROR(VLOOKUP(AT34,入力シート!$AA$38:$AG$62,4,FALSE),\"\")","v":""}]
[9,null,null,null,{"$f":"IFERROR(VLOOKUP(A36,入力シート!$AA$38:$AG$62,2,FALSE),\"\")","v":""},null,null,null,{"$f":"IFERROR(VLOOKUP(A36,入力シート!$AA$38:$AG$62,3,FALSE),\"\")","v":""},null,null,null,null,null,null,{"$f":"IFERROR(VLOOKUP(A36,入力シート!$AA$38:$AG$62,5,FALSE),\"\")","v":""},null,null,null,null,null,null,null,null,null,null,null,null,null,null,null,null,null,null,null,null,null,null,null,{"$f":"IFERROR(VLOOKUP(A36,入力シート!$AA$38:$AG$62,7,FALSE),\"\")","v":""},null,null,null,null,null,22,null,null,null,{"$f":"IFERROR(VLOOKUP(AT36,入力シート!$AA$38:$AG$62,2,FALSE),\"\")","v":""},null,null,null,{"$f":"IFERROR(VLOOKUP(AT36,入力シート!$AA$38:$AG$62,3,FALSE),\"\")","v":""},null,null,null,null,null,null,{"$f":"IFERROR(VLOOKUP(AT36,入力シート!$AA$38:$AG$62,5,FALSE),\"\")","v":""},null,null,null,null,null,null,null,null,null,null,null,null,null,null,null,null,null,null,null,null,null,null,null,{"$f":"IFERROR(VLOOKUP(AT36,入力シート!$AA$38:$AG$62,7,FALSE),\"\")","v":""}]
[null,null,null,null,null,null,null,null,null,null,null,null,null,null,null,{"$f":"IFERROR(VLOOKUP(A36,入力シート!$AA$38:$AG$62,4,FALSE),\"\")","v":""},null,null,null,null,null,null,null,null,null,null,null,null,null,null,null,null,null,null,null,null,null,null,null,null,null,null,null,null,null,null,null,null,null,null,null,null,null,null,null,null,null,null,null,null,{"$f":"IFERROR(VLOOKUP(AT36,入力シート!$AA$38:$AG$62,4,FALSE),\"\")","v":""}]
[10,null,null,null,{"$f":"IFERROR(VLOOKUP(A38,入力シート!$AA$38:$AG$62,2,FALSE),\"\")","v":""},null,null,null,{"$f":"IFERROR(VLOOKUP(A38,入力シート!$AA$38:$AG$62,3,FALSE),\"\")","v":""},null,null,null,null,null,null,{"$f":"IFERROR(VLOOKUP(A38,入力シート!$AA$38:$AG$62,5,FALSE),\"\")","v":""},null,null,null,null,null,null,null,null,null,null,null,null,null,null,null,null,null,null,null,null,null,null,null,{"$f":"IFERROR(VLOOKUP(A38,入力シート!$AA$38:$AG$62,7,FALSE),\"\")","v":""},null,null,null,null,null,23,null,null,null,{"$f":"IFERROR(VLOOKUP(AT38,入力シート!$AA$38:$AG$62,2,FALSE),\"\")","v":""},null,null,null,{"$f":"IFERROR(VLOOKUP(AT38,入力シート!$AA$38:$AG$62,3,FALSE),\"\")","v":""},null,null,null,null,null,null,{"$f":"IFERROR(VLOOKUP(AT38,入力シート!$AA$38:$AG$62,5,FALSE),\"\")","v":""},null,null,null,null,null,null,null,null,null,null,null,null,null,null,null,null,null,null,null,null,null,null,null,{"$f":"IFERROR(VLOOKUP(AT38,入力シート!$AA$38:$AG$62,7,FALSE),\"\")","v":""}]
[null,null,null,null,null,null,null,null,null,null,null,null,null,null,null,{"$f":"IFERROR(VLOOKUP(A38,入力シート!$AA$38:$AG$62,4,FALSE),\"\")","v":""},null,null,null,null,null,null,null,null,null,null,null,null,null,null,null,null,null,null,null,null,null,null,null,null,null,null,null,null,null,null,null,null,null,null,null,null,null,null,null,null,null,null,null,null,{"$f":"IFERROR(VLOOKUP(AT38,入力シート!$AA$38:$AG$62,4,FALSE),\"\")","v":""}]
[11,null,null,null,{"$f":"IFERROR(VLOOKUP(A40,入力シート!$AA$38:$AG$62,2,FALSE),\"\")","v":""},null,null,null,{"$f":"IFERROR(VLOOKUP(A40,入力シート!$AA$38:$AG$62,3,FALSE),\"\")","v":""},null,null,null,null,null,null,{"$f":"IFERROR(VLOOKUP(A40,入力シート!$AA$38:$AG$62,5,FALSE),\"\")","v":""},null,null,null,null,null,null,null,null,null,null,null,null,null,null,null,null,null,null,null,null,null,null,null,{"$f":"IFERROR(VLOOKUP(A40,入力シート!$AA$38:$AG$62,7,FALSE),\"\")","v":""},null,null,null,null,null,24,null,null,null,{"$f":"IFERROR(VLOOKUP(AT40,入力シート!$AA$38:$AG$62,2,FALSE),\"\")","v":""},null,null,null,{"$f":"IFERROR(VLOOKUP(AT40,入力シート!$AA$38:$AG$62,3,FALSE),\"\")","v":""},null,null,null,null,null,null,{"$f":"IFERROR(VLOOKUP(AT40,入力シート!$AA$38:$AG$62,5,FALSE),\"\")","v":""},null,null,null,null,null,null,null,null,null,null,null,null,null,null,null,null,null,null,null,null,null,null,null,{"$f":"IFERROR(VLOOKUP(AT40,入力シート!$AA$38:$AG$62,7,FALSE),\"\")","v":""}]
[null,null,null,null,null,null,null,null,null,null,null,null,null,null,null,{"$f":"IFERROR(VLOOKUP(A40,入力シート!$AA$38:$AG$62,4,FALSE),\"\")","v":""},null,null,null,null,null,null,null,null,null,null,null,null,null,null,null,null,null,null,null,null,null,null,null,null,null,null,null,null,null,null,null,null,null,null,null,null,null,null,null,null,null,null,null,null,{"$f":"IFERROR(VLOOKUP(AT40,入力シート!$AA$38:$AG$62,4,FALSE),\"\")","v":""}]
[12,null,null,null,{"$f":"IFERROR(VLOOKUP(A42,入力シート!$AA$38:$AG$62,2,FALSE),\"\")","v":""},null,null,null,{"$f":"IFERROR(VLOOKUP(A42,入力シート!$AA$38:$AG$62,3,FALSE),\"\")","v":""},null,null,null,null,null,null,{"$f":"IFERROR(VLOOKUP(A42,入力シート!$AA$38:$AG$62,5,FALSE),\"\")","v":""},null,null,null,null,null,null,null,null,null,null,null,null,null,null,null,null,null,null,null,null,null,null,null,{"$f":"IFERROR(VLOOKUP(A42,入力シート!$AA$38:$AG$62,7,FALSE),\"\")","v":""},null,null,null,null,null,25,null,null,null,{"$f":"IFERROR(VLOOKUP(AT42,入力シート!$AA$38:$AG$62,2,FALSE),\"\")","v":""},null,null,null,{"$f":"IFERROR(VLOOKUP(AT42,入力シート!$AA$38:$AG$62,3,FALSE),\"\")","v":""},null,null,null,null,null,null,{"$f":"IFERROR(VLOOKUP(AT42,入力シート!$AA$38:$AG$62,5,FALSE),\"\")","v":""},null,null,null,null,null,null,null,null,null,null,null,null,null,null,null,null,null,null,null,null,null,null,null,{"$f":"IFERROR(VLOOKUP(AT42,入力シート!$AA$38:$AG$62,7,FALSE),\"\")","v":""}]
[null,null,null,null,null,null,null,null,null,null,null,null,null,null,null,{"$f":"IFERROR(VLOOKUP(A42,入力シート!$AA$38:$AG$62,4,FALSE),\"\")","v":""},null,null,null,null,null,null,null,null,null,null,null,null,null,null,null,null,null,null,null,null,null,null,null,null,null,null,null,null,null,null,null,null,null,null,null,null,null,null,null,null,null,null,null,null,{"$f":"IFERROR(VLOOKUP(AT42,入力シート!$AA$38:$AG$62,4,FALSE),\"\")","v":""}]
[13,null,null,null,{"$f":"IFERROR(VLOOKUP(A44,入力シート!$AA$38:$AG$62,2,FALSE),\"\")","v":""},null,null,null,{"$f":"IFERROR(VLOOKUP(A44,入力シート!$AA$38:$AG$62,3,FALSE),\"\")","v":""},null,null,null,null,null,null,{"$f":"IFERROR(VLOOKUP(A44,入力シート!$AA$38:$AG$62,5,FALSE),\"\")","v":""},null,null,null,null,null,null,null,null,null,null,null,null,null,null,null,null,null,null,null,null,null,null,null,{"$f":"IFERROR(VLOOKUP(A44,入力シート!$AA$38:$AG$62,7,FALSE),\"\")","v":""}]
[null,null,null,null,null,null,null,null,null,null,null,null,null,null,null,{"$f":"IFERROR(VLOOKUP(A44,入力シート!$AA$38:$AG$62,4,FALSE),\"\")","v":""}]
[]
["チーム紹介",null,null,null,null,null,null,null,null,null,null,null,null,null,null,null,null,null,null,null,null,null,null,null,null,null,null,null,null,null,null,null,null,null,null,null,null,null,null,null,null,null,null,null,null,null,null,null,null,null,null,null,null,null,null,null,null,null,null,null,null,null,null,null,null,null,null,null,null,null,null,null,"当大会の過去の成績"]
[{"$f":"入力シート!AA68","v":""},null,null,null,null,null,null,null,null,null,null,null,null,null,null,null,null,null,null,null,null,null,null,null,null,null,null,null,null,null,null,null,null,null,null,null,null,null,null,null,null,null,null,null,null,null,null,null,null,null,null,null,null,null,null,null,null,null,null,null,null,null,null,null,null,null,null,null,null,null,null,null,"出場",null,null,null,null,null,null,{"$f":"IF(入力シート!AA64=\"\",\"\",IF(入力シート!AA64=0,\"\",IF(入力シート!AA64=1,\"初出場\",DBCS(入力シート!AA64)&\"回目\")))","v":""}]
[null,null,null,null,null,null,null,null,null,null,null,null,null,null,null,null,null,null,null,null,null,null,null,null,null,null,null,null,null,null,null,null,null,null,null,null,null,null,null,null,null,null,null,null,null,null,null,null,null,null,null,null,null,null,null,null,null,null,null,null,null,null,null,null,null,null,null,null,null,null,null,null,"優勝",null,null,null,null,null,null,{"$f":"DBCS(入力シート!AA65)","v":""},null,null,null,null,null,null,null,"回"]
[null,null,null,null,null,null,null,null,null,null,null,null,null,null,null,null,null,null,null,null,null,null,null,null,null,null,null,null,null,null,null,null,null,null,null,null,null,null,null,null,null,null,null,null,null,null,null,null,null,null,null,null,null,null,null,null,null,null,null,null,null,null,null,null,null,null,null,null,null,null,null,null,"準優勝",null,null,null,null,null,null,{"$f":"DBCS(入力シート!AA66)","v":""},null,null,null,null,null,null,null,"回"]
[null,null,null,null,null,null,null,null,null,null,null,null,null,null,null,null,null,null,null,null,null,null,null,null,null,null,null,null,null,null,null,null,null,null,null,null,null,null,null,null,null,null,null,null,null,null,null,null,null,null,null,null,null,null,null,null,null,null,null,null,null,null,null,null,null,null,null,null,null,null,null,null,"３位",null,null,null,null,null,null,{"$f":"DBCS(入力シート!AA67)","v":""},null,null,null,null,null,null,null,"回"]

{"sheet":"Windmill","index":5,"n_rows":41,"n_cols":10,"rows_kept":41,"cut":false,"hidden":true,"merged":[]}
["ＩＤ","チーム番号","背番号","選手名","仮名","通算成績番号","FirstName","LastName",null,""]
[1,null,"","",""]
[2,null,"","",""]
[3,null,"","",""]
[4,null,"","",""]
[5,null,"","",""]
[6,null,"","",""]
[7,null,"","",""]
[8,null,"","",""]
[9,null,"","",""]
[10,null,"","",""]
[11,null,"","",""]
[12,null,"","",""]
[13,null,"","",""]
[14,null,"","",""]
[15,null,"","",""]
[16,null,"","",""]
[17,null,"","",""]
[18,null,"","",""]
[19,null,"","",""]
[20,null,"","",""]
[21,null,"","",""]
[22,null,"","",""]
[23,null,"","",""]
[24,null,"","",""]
[25,null,"","",""]
[null,null,null,""]
[null,null,null,""]
[null,null,null,""]
[null,null,null,""]
[null,null,null,""]
[null,null,null,""]
[null,null,null,""]
[null,null,null,""]
[null,null,null,""]
[null,null,null,""]
[null,null,null,""]
[null,null,null,""]
[null,null,null,""]
[null,null,null,""]
[null,null,null,""]

{"sheet":"リスト","index":6,"n_rows":48,"n_cols":6,"rows_kept":48,"cut":false,"hidden":true,"merged":[]}
["大会名","都道府県","指導者","資格","位置","備考"]
["第３９回全日本シニアソフトボール大会","北海道",{"$f":"IF(入力シート!W23=\"\",\"\",入力シート!W23)","v":""},"公認ソフトボールスタートコーチ","投  手","年齢"]
[null,"青森県",{"$f":"IF(入力シート!W24=\"\",\"\",入力シート!W24)","v":""},"公認ソフトボールコーチ１","捕  手","学年"]
[null,"岩手県",{"$f":"IF(入力シート!W25=\"\",\"\",入力シート!W25)","v":""},"公認ソフトボールコーチ２","一塁手","年齢"]
[null,"宮城県",null,"公認ソフトボールコーチ３","二塁手"]
[null,"秋田県",null,"公認ソフトボールコーチ４","三塁手"]
[null,"山形県",null,"公認ソフトボール準指導員","遊撃手"]
[null,"福島県",null,"公認スタートコーチ（教員免許状保持者）","左翼手"]
[null,"茨城県",null,null,"中堅手"]
[null,"栃木県",null,null,"右翼手"]
[null,"群馬県",null,null,"内野手"]
[null,"埼玉県",null,null,"外野手"]
[null,"千葉県"]
[null,"東京都"]
[null,"神奈川県"]
[null,"新潟県"]
[null,"富山県"]
[null,"石川県"]
[null,"福井県"]
[null,"山梨県"]
[null,"長野県"]
[null,"岐阜県"]
[null,"静岡県"]
[null,"愛知県"]
[null,"三重県"]
[null,"滋賀県"]
[null,"京都府"]
[null,"大阪府"]
[null,"兵庫県"]
[null,"奈良県"]
[null,"和歌山県"]
[null,"鳥取県"]
[null,"島根県"]
[null,"岡山県"]
[null,"広島県"]
[null,"山口県"]
[null,"徳島県"]
[null,"香川県"]
[null,"愛媛県"]
[null,"高知県"]
[null,"福岡県"]
[null,"佐賀県"]
[null,"長崎県"]
[null,"熊本県"]
[null,"大分県"]
[null,"宮崎県"]
[null,"鹿児島県"]
[null,"沖縄県"]